Workbook

Sheet 1_aciklikli
B2: TEK KATLI ÇERÇEVE CROSS (1 AÇIKLIKLI) (inş.müh. Gürcan BERBEROĞLU tel: 0532 366 02 04 www.betoncelik.com )
E3: pas payı d ' = | I3: 0.03 | K3: m | P3: dikkat sadece sarı hücrelere rakam giriniz.
M5: 1.05 | O5: m
E6: =SUM(E7:F11) -> -13.41130104
I7: 0.1 | K7: m | P7: m | T7: =SUM(T8:U11) -> 13.41187952
E8: =-J21*H15 -> -0.01175712604 | P8: 0.6 | T8: =-(P22)*R15 -> 0.002913168595
E9: =-J19*H15 -> -0.1915015453 | T9: =-(P20)*R15 -> 0.0474500559
E10: =-J17*H15 -> -3.119201218 | T10: =-(P18)*R15 -> 0.7728724691
E11: =-(F15+J15)*H15 -> -10.08884115 | M11: 0.3 | O11: m | T11: =-(P15+P16+T15)*R15 -> 12.58864383
D13: q = | E13: 10 | G13: KN/m | L13: q = | M13: 15 | O13: KN/m | T13: q = | U13: 10 | W13: KN/m
G14: 0 | I14: =(4*M14/M28)/((4*M14/M28)+(4*H20/X19)) -> 0.4955579426 | L14: I = | M14: =(M5*I7^3/12+I7*M5*(((I7*M5*I7/2+M11*(P8-I7)*((P8-I7)/2+I7))/(M5*I7+(P8-I7)*M11))-I7/2)^2+M11*(P8-I7)^3/12+M11*(P8-I7)*(P8-((I7*M5*I7/2+M11*(P8-I7)*((P8-I7)/2+I7))/(M5*I7+(P8-I7)*M11))-(P8-I7)/2)^2)*10000 -> 87.71323529 | O14: dm4 | Q14: =(4*M14/M28)/((4*M14/M28)+(4*R20/X19)) -> 0.4955579426 | S14: 0
F15: =-E13*F28^2/2 -> -11.25 | H15: =(4*H20/X19)/((4*M14/M28)+(4*H20/X19)) -> 0.5044420574 | J15: =M13*M28^2/12 -> 31.25 | P15: =-M13*M28^2/12 -> -31.25 | R15: =(4*R20/X19)/((4*M14/M28)+(4*R20/X19)) -> 0.5044420574 | T15: =U13*T28^2/2 -> 11.25
J16: =-(F15+J15)*I14 -> -9.911158852 | P16: =+J16/2 -> -4.955579426
J17: =+P17/2 -> 6.183467798 | P17: =-(P15+P16+T15)*Q14 -> 12.3669356
H18: dm4 | J18: =-J17*I14 -> -3.06426658 | P18: =+J18/2 -> -1.53213329 | R18: dm4 | X18: m
J19: =+P19/2 -> 0.3796304105 | P19: =-(P18)*Q14 -> 0.759260821 | X19: 3.5
H20: =J31*H34^3/12*10000 -> 62.5 | J20: =-J19*I14 -> -0.1881288652 | P20: =+J20/2 -> -0.09406443259 | R20: =T31*R34^3/12*10000 -> 62.5
J21: =+P21/2 -> 0.02330718834 | P21: =-(P20)*Q14 -> 0.04661437668
J22: =-J21*I14 -> -0.0115500623 | P22: =+J22/2 -> -0.005775031151
H23: I = | P23: =-(P22)*Q14 -> 0.002861862556 | R23: I =
J24: =SUM(J15:K23) -> 24.66130104 | P24: =SUM(P15:Q23) -> -24.66187952
F28: 1.5 | H28: m | M28: 5 | O28: m | T28: 1.5 | V28: m
J30: m | T30: m
J31: 0.6 | T31: 0.6
H34: 0.5 | J34: m | R34: 0.5 | T34: m
H36: =-J24 -> -24.66130104 | R36: =+P24 -> -24.66187952
K37: moment diyagramı (KNm)
G38: =IF(F15=0,"",+F15) -> -11.25 | S38: =IF(T15=0,"",-T15) -> -11.25
K40: =IF(E6>0,E6,"") ->  | O40: =IF(T7<0,T7,"") -> 
E41: =IF(E6<0,E6,"") -> -13.41130104 | U41: =IF(T7>0,T7,"") -> 13.41187952
M44: =(((J24-(-P24))/M28+M13*M28*0.5)^2/(2*M13))-J24 -> 22.21340972
E52: =IF(E6>0,-E6/2,"") ->  | K52: =IF(E6<0,-E6/2,"") -> 6.705650519 | O52: =IF(T7>0,-T7/2,"") -> -6.705939762 | U52: =IF(T7<0,-T7/2,"") -> 
K54: kesme kuvveti diyagramı (KN)
G55: =M13*M28+Q61 -> 37.4998843 | Q55: =IF(T15=0,"",U13*T28) -> 15
E58: =IF(E69<0,E69,"") -> -5.747700445 | K58: =IF(K69>0,K69,"") ->  | O58: =IF(O69<0,O69,"") ->  | U58: =IF(U69>0,U69,"") -> 5.747948367
I61: =IF(F15=0,"",-E13*F28) -> -15 | Q61: =-(0.5*M13*M28^2+(-P24)-J24)/M28 -> -37.5001157
J63: =((M13*M28-((0.5*M13*M28^2+(-P24)-J24)/M28))*M28)/((M13*M28-((0.5*M13*M28^2+(-P24)-J24)/M28))+((0.5*M13*M28^2+(-P24)-J24)/M28)) -> 2.499992287 | L63: m | O63: =+M28-J63 -> 2.500007713 | Q63: m
E69: =IF(E6<0,(E6+E6/2)/$X$19,"") -> -5.747700445 | K69: =IF(E6>0,(E6+E6/2)/$X$19,"") ->  | O69: =IF(T7<0,(T7+T7/2)/$X$19,"") ->  | U69: =IF(T7>0,(T7+T7/2)/$X$19,"") -> 5.747948367
C71: kiriş faydalı yükseklik d (m) | I71: =P8-I3 -> 0.57
C73: kiriş kolon yüzünden d mesafede kesme kuvveti (KN) | I73: =(M13*M28-((0.5*M13*M28^2-P24-J24)/M28))-M13*(H34/2+I71) -> 25.1998843 | P73: =((0.5*M13*M28^2-P24-J24)/M28)-M13*(R34/2+I71) -> 25.2001157
C75: kiriş kolon yüzünden 2*h mesafede kesme kuvveti (KN) | I75: =(M13*M28-((0.5*M13*M28^2-P24-J24)/M28))-M13*(H34/2+2*P8) -> 15.7498843 | P75: =((0.5*M13*M28^2-P24-J24)/M28)-M13*(R34/2+2*P8) -> 15.7501157
C77: kiriş kolon yüzü kesme kuvveti (KN) | I77: =(M13*M28-((0.5*M13*M28^2-P24-J24)/M28))-M13*H34/2 -> 33.7498843 | P77: =((0.5*M13*M28^2-P24-J24)/M28)-M13*R34/2 -> 33.7501157
C79: kiriş kolon yüzü moment (KNm) | I79: =+J24-(M13*M28-((0.5*M13*M28^2-P24-J24)/M28))*H34/3 -> 18.41132032 | P79: =-P24-((0.5*M13*M28^2-P24-J24)/M28)*R34/3 -> 18.41186024

Sheet 2_aciklikli
B2: TEK KATLI ÇERÇEVE CROSS (2 AÇIKLIKLI) (inş.müh. Gürcan BERBEROĞLU tel: 0532 366 02 04 www.betoncelik.com )
J3: pas payı d ' = | N3: 0.03 | P3: m | T3: dikkat sadece sarı hücrelere rakam giriniz.
M5: 1.05 | O5: m | W5: 1.05 | Y5: m
E6: =SUM(E7:F11) -> -17.7605641 | AD6: =SUM(AD7:AE11) -> 17.7605641
I7: 0.1 | K7: m | P7: m | Q7: =SUM(Q8:R11) -> 6.527160171e-16 | S7: 0.1 | U7: m | Z7: m
E8: =-J21*H15 -> -1.000723248e-18 | P8: 0.6 | Q8: =-(P22+T22)*R15 -> 3.315928723e-19 | Z8: 0.6 | AD8: =-(Z21)*AB15 -> -1.000723248e-18
E9: =-J19*H15 -> -1.218872689e-17 | Q9: =-(P20+T20)*R15 -> 4.038773923e-18 | AD9: =-(Z19)*AB15 -> -1.218872689e-17
E10: =-J17*H15 -> -1.484576914e-16 | Q10: =-(P18+T18)*R15 -> 4.919193434e-17 | AD10: =-(Z17)*AB15 -> -1.484576914e-16
E11: =-(F15+J15)*H15 -> -17.7605641 | M11: 0.3 | O11: m | Q11: =-(P15+P16+T15+T16)*R15 -> 5.99153716e-16 | W11: 0.3 | Y11: m | AD11: =-(Z15+AD15)*AB15 -> 17.7605641
D13: q = | E13: 15 | G13: KN/m | L13: q = | M13: 25 | O13: KN/m | V13: q = | W13: 25 | Y13: KN/m | AD13: q = | AE13: 15 | AG13: KN/m
G14: 0 | I14: =(4*M14/M28)/((4*M14/M28)+(4*H20/AH19)) -> 0.4955579426 | L14: I = | M14: =(M5*I7^3/12+I7*M5*(((I7*M5*I7/2+M11*(P8-I7)*((P8-I7)/2+I7))/(M5*I7+(P8-I7)*M11))-I7/2)^2+M11*(P8-I7)^3/12+M11*(P8-I7)*(P8-((I7*M5*I7/2+M11*(P8-I7)*((P8-I7)/2+I7))/(M5*I7+(P8-I7)*M11))-(P8-I7)/2)^2)*10000 -> 87.71323529 | O14: dm4 | Q14: =(4*M14/M28)/((4*M14/M28)+(4*R20/AH19)+(4*W14/W28)) -> 0.3313532217 | S14: =(4*W14/W28)/((4*M14/M28)+(4*R20/AH19)+(4*W14/W28)) -> 0.3313532217 | V14: I = | W14: =(W5*S7^3/12+S7*W5*(((S7*W5*S7/2+W11*(Z8-S7)*((Z8-S7)/2+S7))/(W5*S7+(Z8-S7)*W11))-S7/2)^2+W11*(Z8-S7)^3/12+W11*(Z8-S7)*(Z8-((S7*W5*S7/2+W11*(Z8-S7)*((Z8-S7)/2+S7))/(W5*S7+(Z8-S7)*W11))-(Z8-S7)/2)^2)*10000 -> 87.71323529 | Y14: dm4 | AA14: =(4*W14/W28)/((4*W14/W28)+(4*AB20/AH19)) -> 0.4955579426 | AC14: 0
F15: =-E13*F28^2/2 -> -16.875 | H15: =(4*H20/AH19)/((4*M14/M28)+(4*H20/AH19)) -> 0.5044420574 | J15: =M13*M28^2/12 -> 52.08333333 | P15: =-M13*M28^2/12 -> -52.08333333 | R15: =(4*R20/AH19)/((4*M14/M28)+(4*R20/AH19)+(4*W14/W28)) -> 0.3372935565 | T15: =W13*W28^2/12 -> 52.08333333 | Z15: =-W13*W28^2/12 -> -52.08333333 | AB15: =(4*AB20/AH19)/((4*W14/W28)+(4*AB20/AH19)) -> 0.5044420574 | AD15: =AE13*AD28^2/2 -> 16.875
J16: =-(F15+J15)*I14 -> -17.44776923 | P16: =+J16/2 -> -8.723884614 | T16: =+Z16/2 -> 8.723884614 | Z16: =-(Z15+AD15)*AA14 -> 17.44776923
J17: =+P17/2 -> 2.943007809e-16 | P17: =-(P15+P16+T15+T16)*Q14 -> 5.886015617e-16 | T17: =-(P15+P16+T15+T16)*S14 -> 5.886015617e-16 | Z17: =+T17/2 -> 2.943007809e-16
H18: dm4 | J18: =-J17*I14 -> -1.458430895e-16 | P18: =+J18/2 -> -7.292154473e-17 | R18: dm4 | T18: =+Z18/2 -> -7.292154473e-17 | Z18: =-Z17*AA14 -> -1.458430895e-16 | AB18: dm4 | AH18: m
J19: =+P19/2 -> 2.416278878e-17 | P19: =-(P18+T18)*Q14 -> 4.832557756e-17 | T19: =-(P18+T18)*S14 -> 4.832557756e-17 | Z19: =+T19/2 -> 2.416278878e-17 | AH19: 3.5
H20: =J31*H34^3/12*10000 -> 62.5 | J20: =-J19*I14 -> -1.19740619e-17 | P20: =+J20/2 -> -5.987030948e-18 | R20: =T31*R34^3/12*10000 -> 62.5 | T20: =+Z20/2 -> -5.987030948e-18 | Z20: =-Z19*AA14 -> -1.19740619e-17 | AB20: =AD31*AB34^3/12*10000 -> 62.5
J21: =+P21/2 -> 1.983821993e-18 | P21: =-(P20+T20)*Q14 -> 3.967643987e-18 | T21: =-(P20+T20)*S14 -> 3.967643987e-18 | Z21: =+T21/2 -> 1.983821993e-18
J22: =-J21*I14 -> -9.830987455e-19 | P22: =+J22/2 -> -4.915493727e-19 | T22: =+Z22/2 -> -4.915493727e-19 | Z22: =-Z21*AA14 -> -9.830987455e-19
H23: I = | P23: =-(P22+T22)*Q14 -> 3.257529366e-19 | R23: I = | T23: =-(P22+T22)*S14 -> 3.257529366e-19 | AB23: I =
J24: =SUM(J15:K23) -> 34.6355641 | P24: =SUM(P15:Q23) -> -60.80721795 | T24: =SUM(T15:U23) -> 60.80721795 | Z24: =SUM(Z15:AA23) -> -34.6355641
F28: 1.5 | H28: m | M28: 5 | O28: m | W28: 5 | Y28: m | AD28: 1.5 | AF28: m
J30: m | T30: m | AD30: m
J31: 0.6 | T31: 0.6 | AD31: 0.6
H34: 0.5 | J34: m | R34: 0.5 | T34: m | AB34: 0.5 | AD34: m
H36: =-J24 -> -34.6355641 | Q36: =+P24 -> -60.80721795 | S36: =-T24 -> -60.80721795 | AB36: =+Z24 -> -34.6355641
K37: moment diyagramı (KNm)
G38: =IF(F15=0,"",+F15) -> -16.875 | AC38: =IF(AD15=0,"",-AD15) -> -16.875
K40: =IF(E6>0,E6,"") ->  | O40: =IF(Q7<0,Q7,"") ->  | U40: =IF(Q7>0,Q7,"") -> 6.527160171e-16 | Y40: =IF(AD6<0,AD6,"") -> 
E41: =IF(E6<0,E6,"") -> -17.7605641 | AE41: =IF(AD6>0,AD6,"") -> 17.7605641
M44: =(((J24-(-P24))/M28+M13*M28*0.5)^2/(2*M13))-J24 -> 30.95157335 | W44: =(((T24-(-Z24))/W28+W13*W28*0.5)^2/(2*W13))-T24 -> 30.95157335
E52: =IF(E6>0,-E6/2,"") ->  | K52: =IF(E6<0,-E6/2,"") -> 8.880282052 | O52: =IF(Q7>0,-Q7/2,"") -> -3.263580086e-16 | U52: =IF(Q7<0,-Q7/2,"") ->  | Y52: =IF(AD6>0,-AD6/2,"") -> -8.880282052 | AE52: =IF(AD6<0,-AD6/2,"") -> 
K54: kesme kuvveti diyagramı (KN)
G55: =M13*M28+Q61 -> 57.26566923 | Q55: =W13*W28+AA61 -> 67.73433077 | AA55: =IF(AD15=0,"",AE13*AD28) -> 22.5
E58: =IF(E69<0,E69,"") -> -7.611670331 | K58: =IF(K69>0,K69,"") ->  | O58: =IF(O69<0,O69,"") ->  | U58: =IF(U69>0,U69,"") -> 2.797354359e-16 | Y58: =IF(Z69<0,Z69,"") ->  | AE58: =IF(AE69>0,AE69,"") -> 7.611670331
I61: =IF(F15=0,"",-E13*F28) -> -22.5 | Q61: =-(0.5*M13*M28^2+(-P24)-J24)/M28 -> -67.73433077 | AA61: =-(0.5*W13*W28^2+(-Z24)-T24)/W28 -> -57.26566923
J63: =((M13*M28-((0.5*M13*M28^2+(-P24)-J24)/M28))*M28)/((M13*M28-((0.5*M13*M28^2+(-P24)-J24)/M28))+((0.5*M13*M28^2+(-P24)-J24)/M28)) -> 2.290626769 | L63: m | O63: =+M28-J63 -> 2.709373231 | Q63: m | T63: =((W13*W28-((0.5*W13*W28^2+(-Z24)-T24)/W28))*W28)/((W13*W28-((0.5*W13*W28^2+(-Z24)-T24)/W28))+((0.5*W13*W28^2+(-Z24)-T24)/W28)) -> 2.709373231 | V63: m | Y63: =+W28-T63 -> 2.290626769 | AA63: m
E69: =IF(E6<0,(E6+E6/2)/$AH$19,"") -> -7.611670331 | K69: =IF(E6>0,(E6+E6/2)/$AH$19,"") ->  | O69: =IF(Q7<0,(Q7+Q7/2)/$AH$19,"") ->  | U69: =IF(Q7>0,(Q7+Q7/2)/$AH$19,"") -> 2.797354359e-16 | Z69: =IF(AD6<0,(AD6+AD6/2)/$AH$19,"") ->  | AE69: =IF(AD6>0,(AD6+AD6/2)/$AH$19,"") -> 7.611670331
C71: kiriş faydalı yükseklik d (m) | I71: =P8-$N$3 -> 0.57 | S71: =Z8-$N$3 -> 0.57
C73: kiriş kolon yüzünden d mesafede kesme kuvveti (KN) | I73: =(M13*M28-((0.5*M13*M28^2-P24-J24)/M28))-M13*(H34/2+I71) -> 36.76566923 | P73: =((0.5*M13*M28^2-P24-J24)/M28)-M13*(R34/2+I71) -> 47.23433077 | S73: =(W13*W28-((0.5*W13*W28^2-Z24-T24)/W28))-W13*(R34/2+S71) -> 47.23433077 | Z73: =((0.5*W13*W28^2-Z24-T24)/W28)-W13*(AB34/2+S71) -> 36.76566923
C75: kiriş kolon yüzünden 2*h mesafede kesme kuvveti (KN) | I75: =(M13*M28-((0.5*M13*M28^2-P24-J24)/M28))-M13*(H34/2+2*P8) -> 21.01566923 | P75: =((0.5*M13*M28^2-P24-J24)/M28)-M13*(R34/2+2*P8) -> 31.48433077 | S75: =(W13*W28-((0.5*W13*W28^2-Z24-T24)/W28))-W13*(R34/2+2*Z8) -> 31.48433077 | Z75: =((0.5*W13*W28^2-Z24-T24)/W28)-W13*(AB34/2+2*Z8) -> 21.01566923
C77: kiriş kolon yüzü kesme kuvveti (KN) | I77: =(M13*M28-((0.5*M13*M28^2-P24-J24)/M28))-M13*H34/2 -> 51.01566923 | P77: =((0.5*M13*M28^2-P24-J24)/M28)-M13*R34/2 -> 61.48433077 | S77: =(W13*W28-((0.5*W13*W28^2-Z24-T24)/W28))-W13*R34/2 -> 61.48433077 | Z77: =((0.5*W13*W28^2-Z24-T24)/W28)-W13*AB34/2 -> 51.01566923
C79: kiriş kolon yüzü moment (KNm) | I79: =+J24-(M13*M28-((0.5*M13*M28^2-P24-J24)/M28))*H34/3 -> 25.0912859 | P79: =-P24-((0.5*M13*M28^2-P24-J24)/M28)*R34/3 -> 49.51816282 | S79: =+T24-(W13*W28-((0.5*W13*W28^2-Z24-T24)/W28))*R34/3 -> 49.51816282 | Z79: =-Z24-((0.5*W13*W28^2-Z24-T24)/W28)*AB34/3 -> 25.0912859

Sheet 3_aciklikli
B2: TEK KATLI ÇERÇEVE CROSS (3 AÇIKLIKLI) (inş.müh. Gürcan BERBEROĞLU tel: 0532 366 02 04 www.betoncelik.com )
J3: pas payı d ' = | N3: 0.03 | P3: m | U3: dikkat sadece sarı hücrelere rakam giriniz.
M5: 1.05 | O5: m | W5: 1.05 | Y5: m | AG5: 1.05 | AI5: m
E7: =SUM(E8:F11) -> -12.80097507 | I7: 0.1 | K7: m | P7: m | Q7: =SUM(Q8:R11) -> -20.02073574 | S7: 0.1 | U7: m | Z7: m | AA7: =SUM(AA8:AB11) -> 20.01977077 | AC7: 0.1 | AE7: m | AJ7: m | AN7: =SUM(AN8:AO11) -> 12.8000859
E8: =-J21*H15 -> 0.01449301515 | P8: 0.6 | Q8: =-(P22+T22)*R15 -> -0.004553559712 | Z8: 0.6 | AA8: =-(Z21+AD21)*AB15 -> 0.01415695848 | AJ8: 0.6 | AN8: =-AJ22*AL15 -> -0.003507796609
E9: =-J19*H15 -> 0.2207411006 | Q9: =-(P20+T20)*R15 -> -0.05849170763 | AA9: =-(Z19+AD19)*AB15 -> 0.1369032503 | AN9: =-AJ20*AL15 -> -0.03392174654
E10: =-J17*H15 -> 4.724354915 | Q10: =-(P18+T18)*R15 -> -0.8908790744 | AA10: =-(Z17+AD17)*AB15 -> 0.3141931554 | AN10: =-AJ18*AL15 -> -0.07785045683
E11: =-(J15+F15)*H15 -> -17.7605641 | M11: 0.3 | O11: m | Q11: =-(P15+P16+T15+T16)*R15 -> -19.0668114 | W11: 0.3 | Y11: m | AA11: =-(Z15+AD15)*AB15 -> 19.5545174 | AG11: 0.3 | AI11: m | AN11: =-(AJ15+AJ16+AN15)*AL15 -> 12.9153659
D13: q = | E13: 15 | G13: KN/m | L13: q = | M13: 25 | O13: KN/m | V13: q = | W13: 30 | Y13: KN/m | AF13: q = | AG13: 25 | AI13: KN/m | AN13: q = | AO13: 15 | AQ13: KN/m
G14: 0 | I14: =(4*M14/M28)/((4*M14/M28)+(4*H20/AR19)) -> 0.4955579426 | L14: I = | M14: =(M5*I7^3/12+I7*M5*(((I7*M5*I7/2+M11*(P8-I7)*((P8-I7)/2+I7))/(M5*I7+(P8-I7)*M11))-I7/2)^2+M11*(P8-I7)^3/12+M11*(P8-I7)*(P8-((I7*M5*I7/2+M11*(P8-I7)*((P8-I7)/2+I7))/(M5*I7+(P8-I7)*M11))-(P8-I7)/2)^2)*10000 -> 87.71323529 | O14: dm4 | Q14: =(4*M14/M28)/((4*M14/M28)+(4*R20/AR19)+(4*W14/W28)) -> 0.35878838 | S14: =(4*W14/W28)/((4*M14/M28)+(4*R20/AR19)+(4*W14/W28)) -> 0.2759910615 | V14: I = | W14: =(W5*S7^3/12+S7*W5*(((S7*W5*S7/2+W11*(Z8-S7)*((Z8-S7)/2+S7))/(W5*S7+(Z8-S7)*W11))-S7/2)^2+W11*(Z8-S7)^3/12+W11*(Z8-S7)*(Z8-((S7*W5*S7/2+W11*(Z8-S7)*((Z8-S7)/2+S7))/(W5*S7+(Z8-S7)*W11))-(Z8-S7)/2)^2)*10000 -> 87.71323529 | Y14: dm4 | AA14: =(4*W14/W28)/((4*W14/W28)+(4*AB20/AR19)+(4*AG14/AG28)) -> 0.2759910615 | AC14: =(4*AG14/AG28)/((4*W14/W28)+(4*AB20/AR19)+(4*AG14/AG28)) -> 0.35878838 | AF14: I = | AG14: =(AG5*AC7^3/12+AC7*AG5*(((AC7*AG5*AC7/2+AG11*(AJ8-AC7)*((AJ8-AC7)/2+AC7))/(AG5*AC7+(AJ8-AC7)*AG11))-AC7/2)^2+AG11*(AJ8-AC7)^3/12+AG11*(AJ8-AC7)*(AJ8-((AC7*AG5*AC7/2+AG11*(AJ8-AC7)*((AJ8-AC7)/2+AC7))/(AG5*AC7+(AJ8-AC7)*AG11))-(AJ8-AC7)/2)^2)*10000 -> 87.71323529 | AI14: dm4 | AK14: =(4*AG14/AG28)/((4*AG14/AG28)+(4*AL20/AR19)) -> 0.4955579426 | AM14: 0
F15: =-E13*F28^2/2 -> -16.875 | H15: =(4*H20/AR19)/((4*M14/M28)+(4*H20/AR19)) -> 0.5044420574 | J15: =M13*M28^2/12 -> 52.08333333 | P15: =-M13*M28^2/12 -> -52.08333333 | R15: =(4*R20/AR19)/((4*M14/M28)+(4*R20/AR19)+(4*W14/W28)) -> 0.3652205585 | T15: =W13*W28^2/12 -> 105.625 | Z15: =-W13*W28^2/12 -> -105.625 | AB15: =(4*AB20/AR19)/((4*W14/W28)+(4*AB20/AR19)+(4*AG14/AG28)) -> 0.3652205585 | AD15: =AG13*AG28^2/12 -> 52.08333333 | AJ15: =-AG13*AG28^2/12 -> -52.08333333 | AL15: =(4*AL20/AR19)/((4*AG14/AG28)+(4*AL20/AR19)) -> 0.5044420574 | AN15: =AO13*AN28^2/2 -> 16.875
J16: =-(J15+F15)*I14 -> -17.44776923 | P16: =+J16/2 -> -8.723884614 | T16: =+Z16/2 -> 7.388510709 | Z16: =-(Z15+AD15)*AA14 -> 14.77702142 | AD16: =-(Z15+AD15)*AC14 -> 19.21012784 | AJ16: =+AD16/2 -> 9.605063922
J17: =+P17/2 -> -9.365505602 | P17: =-(P15+P16+T15+T16)*Q14 -> -18.7310112 | T17: =-(P15+P16+T15+T16)*S14 -> -14.40847016 | Z17: =+T17/2 -> -7.204235079 | AD17: =+AJ17/2 -> 6.343951756 | AJ17: =-(AJ15+AJ16+AN15)*AK14 -> 12.68790351
H18: dm4 | J18: =-J17*I14 -> 4.641150687 | P18: =+J18/2 -> 2.320575344 | R18: dm4 | T18: =+Z18/2 -> 0.1187152536 | Z18: =-(Z17+AD17)*AA14 -> 0.2374305073 | AB18: dm4 | AD18: =-(Z17+AD17)*AC14 -> 0.3086596594 | AJ18: =+AD18/2 -> 0.1543298297 | AL18: dm4 | AR18: m
J19: =+P19/2 -> -0.4375945609 | P19: =-(P18+T18)*Q14 -> -0.8751891217 | T19: =-(P18+T18)*S14 -> -0.6732224013 | Z19: =+T19/2 -> -0.3366112007 | AD19: =+AJ19/2 -> -0.03823968645 | AJ19: =-AJ18*AK14 -> -0.0764793729 | AR19: 3.5
H20: =J31*H34^3/12*10000 -> 62.5 | J20: =-J19*I14 -> 0.2168534603 | P20: =+J20/2 -> 0.1084267301 | R20: =T31*R34^3/12*10000 -> 62.5 | T20: =+Z20/2 -> 0.05172774712 | Z20: =-(Z19+AD19)*AA14 -> 0.1034554942 | AB20: =AD31*AB34^3/12*10000 -> 62.5 | AD20: =-(Z19+AD19)*AC14 -> 0.1344921425 | AJ20: =+AD20/2 -> 0.06724607126 | AL20: =AN31*AL34^3/12*10000 -> 62.5
J21: =+P21/2 -> -0.02873078272 | P21: =-(P20+T20)*Q14 -> -0.05746156544 | T21: =-(P20+T20)*S14 -> -0.04420120418 | Z21: =+T21/2 -> -0.02210060209 | AD21: =+AJ21/2 -> -0.01666216236 | AJ21: =-AJ20*AK14 -> -0.03332432472
J22: =-J21*I14 -> 0.01423776757 | P22: =+J22/2 -> 0.007118883787 | T22: =+Z22/2 -> 0.005349088254 | Z22: =-(Z21+AD21)*AA14 -> 0.01069817651 | AD22: =-(Z21+AD21)*AC14 -> 0.01390762946 | AJ22: =+AD22/2 -> 0.00695381473
H23: I = | P23: =-(P22+T22)*Q14 -> -0.00447336349 | R23: I = | T23: =-(P22+T22)*S14 -> -0.003441048839 | AB23: I = | AJ23: =-AJ22*AK14 -> -0.003446018121 | AL23: I =
J24: =SUM(J15:K23) -> 29.67597507 | P24: =SUM(P15:Q23) -> -78.03923224 | T24: =SUM(T15:U23) -> 98.05996799 | Z24: =SUM(Z15:AA23) -> -98.05934128 | AD24: =SUM(AD15:AE23) -> 78.03957052 | AJ24: =SUM(AJ15:AK23) -> -29.6750859
F28: 1.5 | H28: m | M28: 5 | O28: m | W28: 6.5 | Y28: m | AG28: 5 | AI28: m | AN28: 1.5 | AP28: m
J30: m | T30: m | AD30: m | AN30: m
J31: 0.6 | T31: 0.6 | AD31: 0.6 | AN31: 0.6
H34: 0.5 | J34: m | R34: 0.5 | T34: m | AB34: 0.5 | AD34: m | AL34: 0.5 | AN34: m
H36: =-J24 -> -29.67597507 | Q36: =+P24 -> -78.03923224 | S36: =-T24 -> -98.05996799 | AA36: =+Z24 -> -98.05934128 | AC36: =-AD24 -> -78.03957052 | AL36: =+AJ24 -> -29.6750859
K37: moment diyagramı (KNm)
G38: =IF(F15=0,"",+F15) -> -16.875 | AM38: =IF(AN15=0,"",-AN15) -> -16.875
K40: =IF(E7>0,E7,"") ->  | O40: =IF(Q7<0,Q7,"") -> -20.02073574 | U40: =IF(Q7>0,Q7,"") ->  | Y40: =IF(AA7<0,AA7,"") ->  | AE40: =IF(AA7>0,AA7,"") -> 20.01977077 | AI40: =IF(AN7<0,AN7,"") -> 
E41: =IF(E7<0,E7,"") -> -12.80097507 | AO41: =IF(AN7>0,AN7,"") -> 12.8000859
M44: =(((J24-(-P24))/M28+M13*M28*0.5)^2/(2*M13))-J24 -> 26.13860006 | W44: =(((T24-(-Z24))/W28+W13*W28*0.5)^2/(2*W13))-T24 -> 60.37784536 | AG44: =(((AD24-(-AJ24))/AG28+AG13*AG28*0.5)^2/(2*AG13))-AD24 -> 26.13897049
E52: =IF(E7>0,-E7/2,"") ->  | K52: =IF(E7<0,-E7/2,"") -> 6.400487537 | O52: =IF(Q7>0,-Q7/2,"") ->  | U52: =IF(Q7<0,-Q7/2,"") -> 10.01036787 | Y52: =IF(AA7>0,-AA7/2,"") -> -10.00988538 | AE52: =IF(AA7<0,-AA7/2,"") ->  | AI52: =IF(AN7>0,-AN7/2,"") -> -6.400042949 | AO52: =IF(AN7<0,-AN7/2,"") -> 
K54: kesme kuvveti diyagramı (KN)
G55: =M13*M28+Q61 -> 52.82734857 | Q55: =W13*W28+AA61 -> 97.50009642 | AA55: =AG13*AG28+AK61 -> 72.17289692 | AK55: =IF(AN15=0,"",AO13*AN28) -> 22.5
E58: =IF(E69<0,E69,"") -> -5.486132175 | K58: =IF(K69>0,K69,"") ->  | O58: =IF(O69<0,O69,"") -> -8.580315318 | U58: =IF(U69>0,U69,"") ->  | Y58: =IF(Y69<0,Y69,"") ->  | AE58: =IF(AE69>0,AE69,"") -> 8.579901758 | AI58: =IF(AJ69<0,AJ69,"") ->  | AO58: =IF(AO69>0,AO69,"") -> 5.485751099
I61: =IF(F15=0,"",-E13*F28) -> -22.5 | Q61: =-(0.5*M13*M28^2+(-P24)-J24)/M28 -> -72.17265143 | AA61: =-(0.5*W13*W28^2+(-Z24)-T24)/W28 -> -97.49990358 | AK61: =-(0.5*AG13*AG28^2+(-AJ24)-AD24)/AG28 -> -52.82710308
J63: =((M13*M28-((0.5*M13*M28^2+(-P24)-J24)/M28))*M28)/((M13*M28-((0.5*M13*M28^2+(-P24)-J24)/M28))+((0.5*M13*M28^2+(-P24)-J24)/M28)) -> 2.113093943 | L63: m | O63: =+M28-J63 -> 2.886906057 | Q63: m | T63: =((W13*W28-((0.5*W13*W28^2+(-Z24)-T24)/W28))*W28)/((W13*W28-((0.5*W13*W28^2+(-Z24)-T24)/W28))+((0.5*W13*W28^2+(-Z24)-T24)/W28)) -> 3.250003214 | V63: m | Y63: =+W28-T63 -> 3.249996786 | AA63: m | AD63: =((AG13*AG28-((0.5*AG13*AG28^2+(-AJ24)-AD24)/AG28))*AG28)/((AG13*AG28-((0.5*AG13*AG28^2+(-AJ24)-AD24)/AG28))+((0.5*AG13*AG28^2+(-AJ24)-AD24)/AG28)) -> 2.886915877 | AF63: m | AI63: =+AG28-AD63 -> 2.113084123 | AK63: m
E69: =IF(E7<0,(E7+E7/2)/$AR$19,"") -> -5.486132175 | K69: =IF(E7>0,(E7+E7/2)/$AR$19,"") ->  | O69: =IF(Q7<0,(Q7+Q7/2)/$AR$19,"") -> -8.580315318 | U69: =IF(Q7>0,(Q7+Q7/2)/$AR$19,"") ->  | Y69: =IF(AA7<0,(AA7+AA7/2)/$AR$19,"") ->  | AE69: =IF(AA7>0,(AA7+AA7/2)/$AR$19,"") -> 8.579901758 | AJ69: =IF(AN7<0,(AN7+AN7/2)/$AR$19,"") ->  | AO69: =IF(AN7>0,(AN7+AN7/2)/$AR$19,"") -> 5.485751099
C71: kiriş faydalı yükseklik d (m) | I71: =P8-$N$3 -> 0.57 | S71: =Z8-$N$3 -> 0.57 | AC71: =AJ8-$N$3 -> 0.57
C73: kiriş kolon yüzünden d mesafede kesme kuvveti (KN) | I73: =(M13*M28-((0.5*M13*M28^2-P24-J24)/M28))-M13*(H34/2+I71) -> 32.32734857 | P73: =((0.5*M13*M28^2-P24-J24)/M28)-M13*(R34/2+I71) -> 51.67265143 | S73: =(W13*W28-((0.5*W13*W28^2-Z24-T24)/W28))-W13*(R34/2+S71) -> 72.90009642 | Z73: =((0.5*W13*W28^2-Z24-T24)/W28)-W13*(AB34/2+S71) -> 72.89990358 | AC73: =(AG13*AG28-((0.5*AG13*AG28^2-AJ24-AD24)/AG28))-AG13*(AB34/2+AC71) -> 51.67289692 | AJ73: =((0.5*AG13*AG28^2-AJ24-AD24)/AG28)-AG13*(AL34/2+AC71) -> 32.32710308
C75: kiriş kolon yüzünden 2*h mesafede kesme kuvveti (KN) | I75: =(M13*M28-((0.5*M13*M28^2-P24-J24)/M28))-M13*(H34/2+2*P8) -> 16.57734857 | P75: =((0.5*M13*M28^2-P24-J24)/M28)-M13*(R34/2+2*P8) -> 35.92265143 | S75: =(W13*W28-((0.5*W13*W28^2-Z24-T24)/W28))-W13*(R34/2+2*Z8) -> 54.00009642 | Z75: =((0.5*W13*W28^2-Z24-T24)/W28)-W13*(AB34/2+2*Z8) -> 53.99990358 | AC75: =(AG13*AG28-((0.5*AG13*AG28^2-AJ24-AD24)/AG28))-AG13*(AB34/2+2*AJ8) -> 35.92289692 | AJ75: =((0.5*AG13*AG28^2-AJ24-AD24)/AG28)-AG13*(AL34/2+2*AJ8) -> 16.57710308
C77: kiriş kolon yüzü kesme kuvveti (KN) | I77: =(M13*M28-((0.5*M13*M28^2-P24-J24)/M28))-M13*H34/2 -> 46.57734857 | P77: =((0.5*M13*M28^2-P24-J24)/M28)-M13*R34/2 -> 65.92265143 | S77: =(W13*W28-((0.5*W13*W28^2-Z24-T24)/W28))-W13*R34/2 -> 90.00009642 | Z77: =((0.5*W13*W28^2-Z24-T24)/W28)-W13*AB34/2 -> 89.99990358 | AC77: =(AG13*AG28-((0.5*AG13*AG28^2-AJ24-AD24)/AG28))-AG13*AB34/2 -> 65.92289692 | AJ77: =((0.5*AG13*AG28^2-AJ24-AD24)/AG28)-AG13*AL34/2 -> 46.57710308
C79: kiriş kolon yüzü moment (KNm) | I79: =+J24-(M13*M28-((0.5*M13*M28^2-P24-J24)/M28))*H34/3 -> 20.87141698 | P79: =-P24-((0.5*M13*M28^2-P24-J24)/M28)*R34/3 -> 66.01045701 | S79: =+T24-(W13*W28-((0.5*W13*W28^2-Z24-T24)/W28))*R34/3 -> 81.80995192 | Z79: =-Z24-((0.5*W13*W28^2-Z24-T24)/W28)*AB34/3 -> 81.80935735 | AC79: =+AD24-(AG13*AG28-((0.5*AG13*AG28^2-AJ24-AD24)/AG28))*AB34/3 -> 66.01075436 | AJ79: =-AJ24-((0.5*AG13*AG28^2-AJ24-AD24)/AG28)*AL34/3 -> 20.87056872

Sheet 4_aciklikli
B2: TEK KATLI ÇERÇEVE CROSS (4 AÇIKLIKLI) (inş.müh. Gürcan BERBEROĞLU tel: 0532 366 02 04 www.betoncelik.com )
J3: pas payı d ' = | N3: 0.03 | P3: m | U3: dikkat sadece sarı hücrelere rakam giriniz.
M5: 1.05 | O5: m | W5: 1.05 | Y5: m | AG5: 1.05 | AI5: m | AQ5: 1.05 | AS5: m
E7: =SUM(E8:F11) -> 1.303241635 | I7: 0.1 | K7: m | P7: m | Q7: =SUM(Q8:R11) -> -24.77205025 | S7: 0.1 | U7: m | Z7: m | AA7: =SUM(AA8:AB11) -> 0 | AC7: 0.1 | AE7: m | AJ7: m | AK7: =SUM(AK8:AL11) -> 24.77205025 | AM7: 0.1 | AO7: m | AT7: m | AX7: =SUM(AX8:AY11) -> -1.303241635
E8: =-J21*H15 -> 0.01158849664 | P8: 0.6 | Q8: =-(P22+T22)*R15 -> -0.002078908968 | Z8: 0.6 | AA8: =-(Z21+AD21)*AB15 -> 0 | AJ8: 0.6 | AK8: =-(AJ22+AN22)*AL15 -> 0.002078908968 | AT8: 0.6 | AX8: =-AT21*AV15 -> -0.01158849664
E9: =-J19*H15 -> 0.2607079533 | Q9: =-(P20+T20)*R15 -> -0.0467694921 | AA9: =-(Z19+AD19)*AB15 -> 0 | AK9: =-(AJ20+AN20)*AL15 -> 0.0467694921 | AX9: =-AT19*AV15 -> -0.2607079533
E10: =-J17*H15 -> 5.865181569 | Q10: =-(P18+T18)*R15 -> -1.052179497 | AA10: =-(Z17+AD17)*AB15 -> 0 | AK10: =-(AJ18+AN18)*AL15 -> 1.052179497 | AX10: =-AT17*AV15 -> -5.865181569
E11: =-(J15+F15)*H15 -> -4.834236384 | M11: 0.3 | O11: m | Q11: =-(P15+P16+T15+T16)*R15 -> -23.67102235 | W11: 0.3 | Y11: m | AA11: =-(Z15+AD15)*AB15 -> 0 | AG11: 0.3 | AI11: m | AK11: =-(AJ15+AJ16+AN15+AN16)*AL15 -> 23.67102235 | AQ11: 0.3 | AS11: m | AX11: =-(AT15+AX15)*AV15 -> 4.834236384
D13: q = | E13: 10 | G13: KN/m | L13: q = | M13: 10 | O13: KN/m | V13: q = | W13: 25 | Y13: KN/m | AF13: q = | AG13: 25 | AI13: KN/m | AP13: q = | AQ13: 10 | AS13: KN/m | AX13: q = | AY13: 10 | BA13: KN/m
G14: 0 | I14: =(4*M14/M28)/((4*M14/M28)+(4*H20/BB19)) -> 0.4955579426 | L14: I = | M14: =(M5*I7^3/12+I7*M5*(((I7*M5*I7/2+M11*(P8-I7)*((P8-I7)/2+I7))/(M5*I7+(P8-I7)*M11))-I7/2)^2+M11*(P8-I7)^3/12+M11*(P8-I7)*(P8-((I7*M5*I7/2+M11*(P8-I7)*((P8-I7)/2+I7))/(M5*I7+(P8-I7)*M11))-(P8-I7)/2)^2)*10000 -> 87.71323529 | O14: dm4 | Q14: =(4*M14/M28)/((4*M14/M28)+(4*R20/BB19)+(4*W14/W28)) -> 0.35878838 | S14: =(4*W14/W28)/((4*M14/M28)+(4*R20/BB19)+(4*W14/W28)) -> 0.2759910615 | V14: I = | W14: =(W5*S7^3/12+S7*W5*(((S7*W5*S7/2+W11*(Z8-S7)*((Z8-S7)/2+S7))/(W5*S7+(Z8-S7)*W11))-S7/2)^2+W11*(Z8-S7)^3/12+W11*(Z8-S7)*(Z8-((S7*W5*S7/2+W11*(Z8-S7)*((Z8-S7)/2+S7))/(W5*S7+(Z8-S7)*W11))-(Z8-S7)/2)^2)*10000 -> 87.71323529 | Y14: dm4 | AA14: =(4*W14/W28)/((4*W14/W28)+(4*AB20/BB19)+(4*AG14/AG28)) -> 0.3009052057 | AC14: =(4*AG14/AG28)/((4*W14/W28)+(4*AB20/BB19)+(4*AG14/AG28)) -> 0.3009052057 | AF14: I = | AG14: =(AG5*AC7^3/12+AC7*AG5*(((AC7*AG5*AC7/2+AG11*(AJ8-AC7)*((AJ8-AC7)/2+AC7))/(AG5*AC7+(AJ8-AC7)*AG11))-AC7/2)^2+AG11*(AJ8-AC7)^3/12+AG11*(AJ8-AC7)*(AJ8-((AC7*AG5*AC7/2+AG11*(AJ8-AC7)*((AJ8-AC7)/2+AC7))/(AG5*AC7+(AJ8-AC7)*AG11))-(AJ8-AC7)/2)^2)*10000 -> 87.71323529 | AI14: dm4 | AK14: =(4*AG14/AG28)/((4*AG14/AG28)+(4*AL20/BB19)+(4*AQ14/AQ28)) -> 0.2759910615 | AM14: =(4*AQ14/AQ28)/((4*AG14/AG28)+(4*AL20/BB19)+(4*AQ14/AQ28)) -> 0.35878838 | AP14: I = | AQ14: =(AQ5*AM7^3/12+AM7*AQ5*(((AM7*AQ5*AM7/2+AQ11*(AT8-AM7)*((AT8-AM7)/2+AM7))/(AQ5*AM7+(AT8-AM7)*AQ11))-AM7/2)^2+AQ11*(AT8-AM7)^3/12+AQ11*(AT8-AM7)*(AT8-((AM7*AQ5*AM7/2+AQ11*(AT8-AM7)*((AT8-AM7)/2+AM7))/(AQ5*AM7+(AT8-AM7)*AQ11))-(AT8-AM7)/2)^2)*10000 -> 87.71323529 | AS14: dm4 | AU14: =(4*AQ14/AQ28)/((4*AQ14/AQ28)+(4*AV20/BB19)) -> 0.4955579426 | AW14: 0
F15: =-E13*F28^2/2 -> -11.25 | H15: =(4*H20/BB19)/((4*M14/M28)+(4*H20/BB19)) -> 0.5044420574 | J15: =M13*M28^2/12 -> 20.83333333 | P15: =-M13*M28^2/12 -> -20.83333333 | R15: =(4*R20/BB19)/((4*M14/M28)+(4*R20/BB19)+(4*W14/W28)) -> 0.3652205585 | T15: =W13*W28^2/12 -> 88.02083333 | Z15: =-W13*W28^2/12 -> -88.02083333 | AB15: =(4*AB20/BB19)/((4*W14/W28)+(4*AB20/BB19)+(4*AG14/AG28)) -> 0.3981895887 | AD15: =AG13*AG28^2/12 -> 88.02083333 | AJ15: =-AG13*AG28^2/12 -> -88.02083333 | AL15: =(4*AL20/BB19)/((4*AG14/AG28)+(4*AL20/BB19)+(4*AQ14/AQ28)) -> 0.3652205585 | AN15: =AQ13*AQ28^2/12 -> 20.83333333 | AT15: =-AQ13*AQ28^2/12 -> -20.83333333 | AV15: =(4*AV20/BB19)/((4*AQ14/AQ28)+(4*AV20/BB19)) -> 0.5044420574 | AX15: =AY13*AX28^2/2 -> 11.25
J16: =-(J15+F15)*I14 -> -4.74909695 | P16: =+J16/2 -> -2.374548475 | T16: =+Z16/2 -> 0 | Z16: =-(Z15+AD15)*AA14 -> 0 | AD16: =-(Z15+AD15)*AC14 -> 0 | AJ16: =+AD16/2 -> 0 | AN16: =+AT16/2 -> 2.374548475 | AT16: =-(AT15+AX15)*AU14 -> 4.74909695
J17: =+P17/2 -> -11.62706694 | P17: =-(P15+P16+T15+T16)*Q14 -> -23.25413388 | T17: =-(P15+P16+T15+T16)*S14 -> -17.88779529 | Z17: =+T17/2 -> -8.943897646 | AD17: =+AJ17/2 -> 8.943897646 | AJ17: =-(AJ15+AJ16+AN15+AN16)*AK14 -> 17.88779529 | AN17: =-(AJ15+AJ16+AN15+AN16)*AM14 -> 23.25413388 | AT17: =+AN17/2 -> 11.62706694
H18: dm4 | J18: =-J17*I14 -> 5.761885371 | P18: =+J18/2 -> 2.880942685 | R18: dm4 | T18: =+Z18/2 -> 0 | Z18: =-(Z17+AD17)*AA14 -> 0 | AB18: dm4 | AD18: =-(Z17+AD17)*AC14 -> 0 | AJ18: =+AD18/2 -> 0 | AL18: dm4 | AN18: =+AT18/2 -> -2.880942685 | AT18: =-AT17*AU14 -> -5.761885371 | AV18: dm4 | BB18: m
J19: =+P19/2 -> -0.5168243794 | P19: =-(P18+T18)*Q14 -> -1.033648759 | T19: =-(P18+T18)*S14 -> -0.7951144299 | Z19: =+T19/2 -> -0.397557215 | AD19: =+AJ19/2 -> 0.397557215 | AJ19: =-(AJ18+AN18)*AK14 -> 0.7951144299 | AN19: =-(AJ18+AN18)*AM14 -> 1.033648759 | AT19: =+AN19/2 -> 0.5168243794 | BB19: 3.5
H20: =J31*H34^3/12*10000 -> 62.5 | J20: =-J19*I14 -> 0.2561164262 | P20: =+J20/2 -> 0.1280582131 | R20: =T31*R34^3/12*10000 -> 62.5 | T20: =+Z20/2 -> 0 | Z20: =-(Z19+AD19)*AA14 -> 0 | AB20: =AD31*AB34^3/12*10000 -> 62.5 | AD20: =-(Z19+AD19)*AC14 -> 0 | AJ20: =+AD20/2 -> 0 | AL20: =AN31*AL34^3/12*10000 -> 62.5 | AN20: =+AT20/2 -> -0.1280582131 | AT20: =-AT19*AU14 -> -0.2561164262 | AV20: =AX31*AV34^3/12*10000 -> 62.5
J21: =+P21/2 -> -0.02297289941 | P21: =-(P20+T20)*Q14 -> -0.04594579881 | T21: =-(P20+T20)*S14 -> -0.03534292216 | Z21: =+T21/2 -> -0.01767146108 | AD21: =+AJ21/2 -> 0.01767146108 | AJ21: =-(AJ20+AN20)*AK14 -> 0.03534292216 | AN21: =-(AJ20+AN20)*AM14 -> 0.04594579881 | AT21: =+AN21/2 -> 0.02297289941
J22: =-J21*I14 -> 0.01138440277 | P22: =+J22/2 -> 0.005692201383 | T22: =+Z22/2 -> 0 | Z22: =-(Z21+AD21)*AA14 -> 0 | AD22: =-(Z21+AD21)*AC14 -> 0 | AJ22: =+AD22/2 -> 0 | AN22: =+AT22/2 -> -0.005692201383 | AT22: =-AT21*AU14 -> -0.01138440277
H23: I = | P23: =-(P22+T22)*Q14 -> -0.002042295713 | R23: I = | T23: =-(P22+T22)*S14 -> -0.001570996702 | AB23: I = | AJ23: =-(AJ22+AN22)*AK14 -> 0.001570996702 | AL23: I = | AN23: =-(AJ22+AN22)*AM14 -> 0.002042295713 | AV23: I =
J24: =SUM(J15:K23) -> 9.946758365 | P24: =SUM(P15:Q23) -> -44.52895944 | T24: =SUM(T15:U23) -> 69.30100969 | Z24: =SUM(Z15:AA23) -> -97.37995966 | AD24: =SUM(AD15:AE23) -> 97.37995966 | AJ24: =SUM(AJ15:AK23) -> -69.30100969 | AN24: =SUM(AN15:AO23) -> 44.52895944 | AT24: =SUM(AT15:AU23) -> -9.946758365
F28: 1.5 | H28: m | M28: 5 | O28: m | W28: 6.5 | Y28: m | AG28: 6.5 | AI28: m | AQ28: 5 | AS28: m | AX28: 1.5 | AZ28: m
J30: m | T30: m | AD30: m | AN30: m | AX30: m
J31: 0.6 | T31: 0.6 | AD31: 0.6 | AN31: 0.6 | AX31: 0.6
H34: 0.5 | J34: m | R34: 0.5 | T34: m | AB34: 0.5 | AD34: m | AL34: 0.5 | AN34: m | AV34: 0.5 | AX34: m
H36: =-J24 -> -9.946758365 | Q36: =+P24 -> -44.52895944 | S36: =-T24 -> -69.30100969 | AA36: =+Z24 -> -97.37995966 | AC36: =-AD24 -> -97.37995966 | AK36: =+AJ24 -> -69.30100969 | AM36: =-AN24 -> -44.52895944 | AV36: =+AT24 -> -9.946758365
K37: moment diyagramı (KNm)
G38: =IF(F15=0,"",+F15) -> -11.25 | AW38: =IF(AX15=0,"",-AX15) -> -11.25
K40: =IF(E7>0,E7,"") -> 1.303241635 | O40: =IF(Q7<0,Q7,"") -> -24.77205025 | U40: =IF(Q7>0,Q7,"") ->  | Y40: =IF(AA7<0,AA7,"") ->  | AE40: =IF(AA7>0,AA7,"") ->  | AI40: =IF(AK7<0,AK7,"") ->  | AO40: =IF(AK7>0,AK7,"") -> 24.77205025 | AS40: =IF(AX7<0,AX7,"") -> -1.303241635
E41: =IF(E7<0,E7,"") ->  | AY41: =IF(AX7>0,AX7,"") -> 
M44: =(((J24-(-P24))/M28+M13*M28*0.5)^2/(2*M13))-J24 -> 6.40399836 | W44: =(((T24-(-Z24))/W28+W13*W28*0.5)^2/(2*W13))-T24 -> 49.06398541 | AG44: =(((AD24-(-AJ24))/AG28+AG13*AG28*0.5)^2/(2*AG13))-AD24 -> 49.06398541 | AQ44: =(((AN24-(-AT24))/AQ28+AQ13*AQ28*0.5)^2/(2*AQ13))-AN24 -> 6.40399836
E52: =IF(E7>0,-E7/2,"") -> -0.6516208175 | K52: =IF(E7<0,-E7/2,"") ->  | O52: =IF(Q7>0,-Q7/2,"") ->  | U52: =IF(Q7<0,-Q7/2,"") -> 12.38602513 | Y52: =IF(AA7>0,-AA7/2,"") ->  | AE52: =IF(AA7<0,-AA7/2,"") ->  | AI52: =IF(AK7>0,-AK7/2,"") -> -12.38602513 | AO52: =IF(AK7<0,-AK7/2,"") ->  | AS52: =IF(AX7>0,-AX7/2,"") ->  | AY52: =IF(AX7<0,-AX7/2,"") -> 0.6516208175
K54: kesme kuvveti diyagramı (KN)
G55: =M13*M28+Q61 -> 18.08355978 | Q55: =W13*W28+AA61 -> 76.93016154 | AA55: =AG13*AG28+AK61 -> 85.56983846 | AK55: =AQ13*AQ28+AU61 -> 31.91644022 | AU55: =IF(AX15=0,"",AY13*AX28) -> 15
E58: =IF(E69<0,E69,"") ->  | K58: =IF(K69>0,K69,"") -> 0.5585321293 | O58: =IF(O69<0,O69,"") -> -10.61659297 | U58: =IF(U69>0,U69,"") ->  | Y58: =IF(Y69<0,Y69,"") ->  | AE58: =IF(AE69>0,AE69,"") ->  | AI58: =IF(AI69<0,AI69,"") ->  | AO58: =IF(AO69>0,AO69,"") -> 10.61659297 | AS58: =IF(AT69<0,AT69,"") -> -0.5585321293 | AY58: =IF(AY69>0,AY69,"") -> 
I61: =IF(F15=0,"",-E13*F28) -> -15 | Q61: =-(0.5*M13*M28^2+(-P24)-J24)/M28 -> -31.91644022 | AA61: =-(0.5*W13*W28^2+(-Z24)-T24)/W28 -> -85.56983846 | AK61: =-(0.5*AG13*AG28^2+(-AJ24)-AD24)/AG28 -> -76.93016154 | AU61: =-(0.5*AQ13*AQ28^2+(-AT24)-AN24)/AQ28 -> -18.08355978
J63: =((M13*M28-((0.5*M13*M28^2+(-P24)-J24)/M28))*M28)/((M13*M28-((0.5*M13*M28^2+(-P24)-J24)/M28))+((0.5*M13*M28^2+(-P24)-J24)/M28)) -> 1.808355978 | L63: m | O63: =+M28-J63 -> 3.191644022 | Q63: m | T63: =((W13*W28-((0.5*W13*W28^2+(-Z24)-T24)/W28))*W28)/((W13*W28-((0.5*W13*W28^2+(-Z24)-T24)/W28))+((0.5*W13*W28^2+(-Z24)-T24)/W28)) -> 3.077206462 | V63: m | Y63: =+W28-T63 -> 3.422793538 | AA63: m | AD63: =((AG13*AG28-((0.5*AG13*AG28^2+(-AJ24)-AD24)/AG28))*AG28)/((AG13*AG28-((0.5*AG13*AG28^2+(-AJ24)-AD24)/AG28))+((0.5*AG13*AG28^2+(-AJ24)-AD24)/AG28)) -> 3.422793538 | AF63: m | AI63: =+AG28-AD63 -> 3.077206462 | AK63: m | AN63: =((AQ13*AQ28-((0.5*AQ13*AQ28^2+(-AT24)-AN24)/AQ28))*AQ28)/((AQ13*AQ28-((0.5*AQ13*AQ28^2+(-AT24)-AN24)/AQ28))+((0.5*AQ13*AQ28^2+(-AT24)-AN24)/AQ28)) -> 3.191644022 | AP63: m | AS63: =+AQ28-AN63 -> 1.808355978 | AU63: m
E69: =IF(E7<0,(E7+E7/2)/$BB$19,"") ->  | K69: =IF(E7>0,(E7+E7/2)/$BB$19,"") -> 0.5585321293 | O69: =IF(Q7<0,(Q7+Q7/2)/$BB$19,"") -> -10.61659297 | U69: =IF(Q7>0,(Q7+Q7/2)/$BB$19,"") ->  | Y69: =IF(AA7<0,(AA7+AA7/2)/$BB$19,"") ->  | AE69: =IF(AA7>0,(AA7+AA7/2)/$BB$19,"") ->  | AI69: =IF(AK7<0,(AK7+AK7/2)/$BB$19,"") ->  | AO69: =IF(AK7>0,(AK7+AK7/2)/$BB$19,"") -> 10.61659297 | AT69: =IF(AX7<0,(AX7+AX7/2)/$BB$19,"") -> -0.5585321293 | AY69: =IF(AX7>0,(AX7+AX7/2)/$BB$19,"") -> 
C71: kiriş faydalı yükseklik d (m) | I71: =P8-$N$3 -> 0.57 | S71: =Z8-$N$3 -> 0.57 | AC71: =AJ8-$N$3 -> 0.57 | AM71: =AT8-$N$3 -> 0.57
C73: kiriş kolon yüzünden d mesafede kesme kuvveti (KN) | I73: =(M13*M28-((0.5*M13*M28^2-P24-J24)/M28))-M13*(H34/2+I71) -> 9.883559785 | P73: =((0.5*M13*M28^2-P24-J24)/M28)-M13*(R34/2+I71) -> 23.71644022 | S73: =(W13*W28-((0.5*W13*W28^2-Z24-T24)/W28))-W13*(R34/2+S71) -> 56.43016154 | Z73: =((0.5*W13*W28^2-Z24-T24)/W28)-W13*(AB34/2+S71) -> 65.06983846 | AC73: =(AG13*AG28-((0.5*AG13*AG28^2-AJ24-AD24)/AG28))-AG13*(AB34/2+AC71) -> 65.06983846 | AJ73: =((0.5*AG13*AG28^2-AJ24-AD24)/AG28)-AG13*(AL34/2+AC71) -> 56.43016154 | AM73: =(AQ13*AQ28-((0.5*AQ13*AQ28^2-AT24-AN24)/AQ28))-AQ13*(AL34/2+AM71) -> 23.71644022 | AT73: =((0.5*AQ13*AQ28^2-AT24-AN24)/AQ28)-AQ13*(AV34/2+AM71) -> 9.883559785
C75: kiriş kolon yüzünden 2*h mesafede kesme kuvveti (KN) | I75: =(M13*M28-((0.5*M13*M28^2-P24-J24)/M28))-M13*(H34/2+2*P8) -> 3.583559785 | P75: =((0.5*M13*M28^2-P24-J24)/M28)-M13*(R34/2+2*P8) -> 17.41644022 | S75: =(W13*W28-((0.5*W13*W28^2-Z24-T24)/W28))-W13*(R34/2+2*Z8) -> 40.68016154 | Z75: =((0.5*W13*W28^2-Z24-T24)/W28)-W13*(AB34/2+2*Z8) -> 49.31983846 | AC75: =(AG13*AG28-((0.5*AG13*AG28^2-AJ24-AD24)/AG28))-AG13*(AB34/2+2*AJ8) -> 49.31983846 | AJ75: =((0.5*AG13*AG28^2-AJ24-AD24)/AG28)-AG13*(AL34/2+2*AJ8) -> 40.68016154 | AM75: =(AQ13*AQ28-((0.5*AQ13*AQ28^2-AT24-AN24)/AQ28))-AQ13*(AL34/2+2*AT8) -> 17.41644022 | AT75: =((0.5*AQ13*AQ28^2-AT24-AN24)/AQ28)-AQ13*(AV34/2+2*AT8) -> 3.583559785
C77: kiriş kolon yüzü kesme kuvveti (KN) | I77: =(M13*M28-((0.5*M13*M28^2-P24-J24)/M28))-M13*H34/2 -> 15.58355978 | P77: =((0.5*M13*M28^2-P24-J24)/M28)-M13*R34/2 -> 29.41644022 | S77: =(W13*W28-((0.5*W13*W28^2-Z24-T24)/W28))-W13*R34/2 -> 70.68016154 | Z77: =((0.5*W13*W28^2-Z24-T24)/W28)-W13*AB34/2 -> 79.31983846 | AC77: =(AG13*AG28-((0.5*AG13*AG28^2-AJ24-AD24)/AG28))-AG13*AB34/2 -> 79.31983846 | AJ77: =((0.5*AG13*AG28^2-AJ24-AD24)/AG28)-AG13*AL34/2 -> 70.68016154 | AM77: =(AQ13*AQ28-((0.5*AQ13*AQ28^2-AT24-AN24)/AQ28))-AQ13*AL34/2 -> 29.41644022 | AT77: =((0.5*AQ13*AQ28^2-AT24-AN24)/AQ28)-AQ13*AV34/2 -> 15.58355978
C79: kiriş kolon yüzü moment (KNm) | I79: =+J24-(M13*M28-((0.5*M13*M28^2-P24-J24)/M28))*H34/3 -> 6.932831734 | P79: =-P24-((0.5*M13*M28^2-P24-J24)/M28)*R34/3 -> 39.20955274 | S79: =+T24-(W13*W28-((0.5*W13*W28^2-Z24-T24)/W28))*R34/3 -> 56.4793161 | Z79: =-Z24-((0.5*W13*W28^2-Z24-T24)/W28)*AB34/3 -> 83.11831991 | AC79: =+AD24-(AG13*AG28-((0.5*AG13*AG28^2-AJ24-AD24)/AG28))*AB34/3 -> 83.11831991 | AJ79: =-AJ24-((0.5*AG13*AG28^2-AJ24-AD24)/AG28)*AL34/3 -> 56.4793161 | AM79: =+AN24-(AQ13*AQ28-((0.5*AQ13*AQ28^2-AT24-AN24)/AQ28))*AL34/3 -> 39.20955274 | AT79: =-AT24-((0.5*AQ13*AQ28^2-AT24-AN24)/AQ28)*AV34/3 -> 6.932831734

Sheet 5_aciklikli
B2: TEK KATLI ÇERÇEVE CROSS (5 AÇIKLIKLI) (inş.müh. Gürcan BERBEROĞLU tel: 0532 366 02 04 www.betoncelik.com )
J3: pas payı d ' = | N3: 0.03 | P3: m | U3: dikkat sadece sarı hücrelere rakam giriniz.
M5: 1.05 | O5: m | W5: 1.05 | Y5: m | AG5: 1.05 | AI5: m | AQ5: 1.05 | AS5: m | BA5: 1.05 | BC5: m
E7: =SUM(E8:F11) -> -3.97396665 | I7: 0.1 | K7: m | P7: m | Q7: =SUM(Q8:R11) -> -3.474672355 | S7: 0.1 | U7: m | Z7: m | AA7: =SUM(AA8:AB11) -> 6.151628255 | AC7: 0.1 | AE7: m | AJ7: m | AK7: =SUM(AK8:AL11) -> -6.15231958 | AM7: 0.1 | AO7: m | AT7: m | AU7: =SUM(AU8:AV11) -> 3.474214148 | AW7: 0.1 | AY7: m | BD7: m | BH7: =SUM(BH8:BI11) -> 3.973399176
E8: =-J21*H15 -> 0.007737527353 | P8: 0.6 | Q8: =-(P22+T22)*R15 -> -0.00274844916 | Z8: 0.6 | AA8: =-(Z21+AD21)*AB15 -> 0.009522676236 | AJ8: 0.6 | AK8: =-(AJ22+AN22)*AL15 -> -0.002659973105 | AT8: 0.6 | AU8: =-(AT21+AX21)*AV15 -> 0.00621468963 | BD8: 0.6 | BH8: =-BD22*BF15 -> -0.001539869404
E9: =-J19*H15 -> 0.0884025172 | Q9: =-(P20+T20)*R15 -> -0.03122753845 | AA9: =-(Z19+AD19)*AB15 -> 0.1076078368 | AK9: =-(AJ20+AN20)*AL15 -> -0.02735682221 | AU9: =-(AT19+AX19)*AV15 -> 0.05102148241 | BH9: =-BD20*BF15 -> -0.01264205043
E10: =-J17*H15 -> 0.7641296894 | Q10: =-(P18+T18)*R15 -> -0.356779741 | AA10: =-(Z17+AD17)*AB15 -> 1.524497416 | AK10: =-(AJ18+AN18)*AL15 -> -0.3062091806 | AU10: =-(AT17+AX17)*AV15 -> 0.1443899437 | BH10: =-BD18*BF15 -> -0.03577679172
E11: =-(J15+F15)*H15 -> -4.834236384 | M11: 0.3 | O11: m | Q11: =-(P15+P16+T15+T16)*R15 -> -3.083916627 | W11: 0.3 | Y11: m | AA11: =-(Z15+AD15)*AB15 -> 4.510000326 | AG11: 0.3 | AI11: m | AK11: =-(AJ15+AJ16+AN15+AN16)*AL15 -> -5.816093604 | AQ11: 0.3 | AS11: m | AU11: =-(AT15+AX15)*AV15 -> 3.272588033 | BA11: 0.3 | BC11: m | BH11: =-(BD15+BD16+BH15)*BF15 -> 4.023357887
D13: q = | E13: 10 | G13: KN/m | L13: q = | M13: 10 | O13: KN/m | V13: q = | W13: 10 | Y13: KN/m | AF13: q = | AG13: 10 | AI13: KN/m | AP13: q = | AQ13: 10 | AS13: KN/m | AZ13: q = | BA13: 10 | BC13: KN/m | BH13: q = | BI13: 10 | BK13: KN/m
G14: 0 | I14: =(4*M14/M28)/((4*M14/M28)+(4*H20/BL19)) -> 0.4955579426 | L14: I = | M14: =(M5*I7^3/12+I7*M5*(((I7*M5*I7/2+M11*(P8-I7)*((P8-I7)/2+I7))/(M5*I7+(P8-I7)*M11))-I7/2)^2+M11*(P8-I7)^3/12+M11*(P8-I7)*(P8-((I7*M5*I7/2+M11*(P8-I7)*((P8-I7)/2+I7))/(M5*I7+(P8-I7)*M11))-(P8-I7)/2)^2)*10000 -> 87.71323529 | O14: dm4 | Q14: =(4*M14/M28)/((4*M14/M28)+(4*R20/BL19)+(4*W14/W28)) -> 0.3507220344 | S14: =(4*W14/W28)/((4*M14/M28)+(4*R20/BL19)+(4*W14/W28)) -> 0.292268362 | V14: I = | W14: =(W5*S7^3/12+S7*W5*(((S7*W5*S7/2+W11*(Z8-S7)*((Z8-S7)/2+S7))/(W5*S7+(Z8-S7)*W11))-S7/2)^2+W11*(Z8-S7)^3/12+W11*(Z8-S7)*(Z8-((S7*W5*S7/2+W11*(Z8-S7)*((Z8-S7)/2+S7))/(W5*S7+(Z8-S7)*W11))-(Z8-S7)/2)^2)*10000 -> 87.71323529 | Y14: dm4 | AA14: =(4*W14/W28)/((4*W14/W28)+(4*AB20/BL19)+(4*AG14/AG28)) -> 0.2813061118 | AC14: =(4*AG14/AG28)/((4*W14/W28)+(4*AB20/BL19)+(4*AG14/AG28)) -> 0.3750748158 | AF14: I = | AG14: =(AG5*AC7^3/12+AC7*AG5*(((AC7*AG5*AC7/2+AG11*(AJ8-AC7)*((AJ8-AC7)/2+AC7))/(AG5*AC7+(AJ8-AC7)*AG11))-AC7/2)^2+AG11*(AJ8-AC7)^3/12+AG11*(AJ8-AC7)*(AJ8-((AC7*AG5*AC7/2+AG11*(AJ8-AC7)*((AJ8-AC7)/2+AC7))/(AG5*AC7+(AJ8-AC7)*AG11))-(AJ8-AC7)/2)^2)*10000 -> 87.71323529 | AI14: dm4 | AK14: =(4*AG14/AG28)/((4*AG14/AG28)+(4*AL20/BL19)+(4*AQ14/AQ28)) -> 0.3750748158 | AM14: =(4*AQ14/AQ28)/((4*AG14/AG28)+(4*AL20/BL19)+(4*AQ14/AQ28)) -> 0.2813061118 | AP14: I = | AQ14: =(AQ5*AM7^3/12+AM7*AQ5*(((AM7*AQ5*AM7/2+AQ11*(AT8-AM7)*((AT8-AM7)/2+AM7))/(AQ5*AM7+(AT8-AM7)*AQ11))-AM7/2)^2+AQ11*(AT8-AM7)^3/12+AQ11*(AT8-AM7)*(AT8-((AM7*AQ5*AM7/2+AQ11*(AT8-AM7)*((AT8-AM7)/2+AM7))/(AQ5*AM7+(AT8-AM7)*AQ11))-(AT8-AM7)/2)^2)*10000 -> 87.71323529 | AS14: dm4 | AU14: =(4*AQ14/AQ28)/((4*AQ14/AQ28)+(4*AV20/BL19)+(4*BA14/BA28)) -> 0.292268362 | AW14: =(4*BA14/BA28)/((4*AQ14/AQ28)+(4*AV20/BL19)+(4*BA14/BA28)) -> 0.3507220344 | AZ14: I = | BA14: =(BA5*AW7^3/12+AW7*BA5*(((AW7*BA5*AW7/2+BA11*(BD8-AW7)*((BD8-AW7)/2+AW7))/(BA5*AW7+(BD8-AW7)*BA11))-AW7/2)^2+BA11*(BD8-AW7)^3/12+BA11*(BD8-AW7)*(BD8-((AW7*BA5*AW7/2+BA11*(BD8-AW7)*((BD8-AW7)/2+AW7))/(BA5*AW7+(BD8-AW7)*BA11))-(BD8-AW7)/2)^2)*10000 -> 87.71323529 | BC14: dm4 | BE14: =(4*BA14/BA28)/((4*BA14/BA28)+(4*BF20/BL19)) -> 0.4955579426 | BG14: 0
F15: =-E13*F28^2/2 -> -11.25 | H15: =(4*H20/BL19)/((4*M14/M28)+(4*H20/BL19)) -> 0.5044420574 | J15: =M13*M28^2/12 -> 20.83333333 | P15: =-M13*M28^2/12 -> -20.83333333 | R15: =(4*R20/BL19)/((4*M14/M28)+(4*R20/BL19)+(4*W14/W28)) -> 0.3570096036 | T15: =W13*W28^2/12 -> 30 | Z15: =-W13*W28^2/12 -> -30 | AB15: =(4*AB20/BL19)/((4*W14/W28)+(4*AB20/BL19)+(4*AG14/AG28)) -> 0.3436190724 | AD15: =AG13*AG28^2/12 -> 16.875 | AJ15: =-AG13*AG28^2/12 -> -16.875 | AL15: =(4*AL20/BL19)/((4*AG14/AG28)+(4*AL20/BL19)+(4*AQ14/AQ28)) -> 0.3436190724 | AN15: =AQ13*AQ28^2/12 -> 30 | AT15: =-AQ13*AQ28^2/12 -> -30 | AV15: =(4*AV20/BL19)/((4*AQ14/AQ28)+(4*AV20/BL19)+(4*BA14/BA28)) -> 0.3570096036 | AX15: =BA13*BA28^2/12 -> 20.83333333 | BD15: =-BA13*BA28^2/12 -> -20.83333333 | BF15: =(4*BF20/BL19)/((4*BA14/BA28)+(4*BF20/BL19)) -> 0.5044420574 | BH15: =BI13*BH28^2/2 -> 11.25
J16: =-(J15+F15)*I14 -> -4.74909695 | P16: =+J16/2 -> -2.374548475 | T16: =+Z16/2 -> 1.846071359 | Z16: =-(Z15+AD15)*AA14 -> 3.692142718 | AD16: =-(Z15+AD15)*AC14 -> 4.922856957 | AJ16: =+AD16/2 -> 2.461428478 | AN16: =+AT16/2 -> 1.339563326 | AT16: =-(AT15+AX15)*AU14 -> 2.679126652 | AX16: =-(AT15+AX15)*AW14 -> 3.214951982 | BD16: =+AX16/2 -> 1.607475991
J17: =+P17/2 -> -1.514801706 | P17: =-(P15+P16+T15+T16)*Q14 -> -3.029603413 | T17: =-(P15+P16+T15+T16)*S14 -> -2.524669511 | Z17: =+T17/2 -> -1.262334755 | AD17: =+AJ17/2 -> -3.174256629 | AJ17: =-(AJ15+AJ16+AN15+AN16)*AK14 -> -6.348513257 | AN17: =-(AJ15+AJ16+AN15+AN16)*AM14 -> -4.761384943 | AT17: =+AN17/2 -> -2.380692472 | AX17: =+BD17/2 -> 1.976249727 | BD17: =-(BD15+BD16+BH15)*BE14 -> 3.952499455
H18: dm4 | J18: =-J17*I14 -> 0.7506720171 | P18: =+J18/2 -> 0.3753360085 | R18: dm4 | T18: =+Z18/2 -> 0.624020136 | Z18: =-(Z17+AD17)*AA14 -> 1.248040272 | AB18: dm4 | AD18: =-(Z17+AD17)*AC14 -> 1.664053696 | AJ18: =+AD18/2 -> 0.832026848 | AL18: dm4 | AN18: =+AT18/2 -> 0.05910290917 | AT18: =-(AT17+AX17)*AU14 -> 0.1182058183 | AV18: dm4 | AX18: =-(AT17+AX17)*AW14 -> 0.141846982 | BD18: =+AX18/2 -> 0.07092349101 | BF18: dm4 | BL18: m
J19: =+P19/2 -> -0.1752481101 | P19: =-(P18+T18)*Q14 -> -0.3504962201 | T19: =-(P18+T18)*S14 -> -0.2920801834 | Z19: =+T19/2 -> -0.1460400917 | AD19: =+AJ19/2 -> -0.1671201647 | AJ19: =-(AJ18+AN18)*AK14 -> -0.3342403295 | AN19: =-(AJ18+AN18)*AM14 -> -0.2506802471 | AT19: =+AN19/2 -> -0.1253401236 | AX19: =+BD19/2 -> -0.01757334964 | BD19: =-BD18*BE14 -> -0.03514669929 | BL19: 3.5
H20: =J31*H34^3/12*10000 -> 62.5 | J20: =-J19*I14 -> 0.08684559286 | P20: =+J20/2 -> 0.04342279643 | R20: =T31*R34^3/12*10000 -> 62.5 | T20: =+Z20/2 -> 0.04404694706 | Z20: =-(Z19+AD19)*AA14 -> 0.08809389412 | AB20: =AD31*AB34^3/12*10000 -> 62.5 | AD20: =-(Z19+AD19)*AC14 -> 0.1174585255 | AJ20: =+AD20/2 -> 0.05872926275 | AL20: =AN31*AL34^3/12*10000 -> 62.5 | AN20: =+AT20/2 -> 0.02088454336 | AT20: =-(AT19+AX19)*AU14 -> 0.04176908672 | AV20: =AX31*AV34^3/12*10000 -> 62.5 | AX20: =-(AT19+AX19)*AW14 -> 0.05012290407 | BD20: =+AX20/2 -> 0.02506145203 | BF20: =BH31*BF34^3/12*10000 -> 62.5
J21: =+P21/2 -> -0.01533878319 | P21: =-(P20+T20)*Q14 -> -0.03067756639 | T21: =-(P20+T20)*S14 -> -0.02556463866 | Z21: =+T21/2 -> -0.01278231933 | AD21: =+AJ21/2 -> -0.01493056683 | AJ21: =-(AJ20+AN20)*AK14 -> -0.02986113366 | AN21: =-(AJ20+AN20)*AM14 -> -0.02239585024 | AT21: =+AN21/2 -> -0.01119792512 | AX21: =+BD21/2 -> -0.006209700804 | BD21: =-BD20*BE14 -> -0.01241940161
J22: =-J21*I14 -> 0.007601255841 | P22: =+J22/2 -> 0.003800627921 | T22: =+Z22/2 -> 0.003897902126 | Z22: =-(Z21+AD21)*AA14 -> 0.007795804252 | AD22: =-(Z21+AD21)*AC14 -> 0.01039440567 | AJ22: =+AD22/2 -> 0.005197202835 | AN22: =+AT22/2 -> 0.002543849158 | AT22: =-(AT21+AX21)*AU14 -> 0.005087698316 | AX22: =-(AT21+AX21)*AW14 -> 0.006105237979 | BD22: =+AX22/2 -> 0.003052618989
H23: I = | P23: =-(P22+T22)*Q14 -> -0.00270004412 | R23: I = | T23: =-(P22+T22)*S14 -> -0.002250036767 | AB23: I = | AJ23: =-(AJ22+AN22)*AK14 -> -0.00290347365 | AL23: I = | AN23: =-(AJ22+AN22)*AM14 -> -0.002177605237 | AV23: I = | BD23: =-BD22*BE14 -> -0.001512749586 | BF23: I =
J24: =SUM(J15:K23) -> 15.22396665 | P24: =SUM(P15:Q23) -> -26.19879962 | T24: =SUM(T15:U23) -> 29.67347197 | Z24: =SUM(Z15:AA23) -> -26.38508448 | AD24: =SUM(AD15:AE23) -> 20.23345622 | AJ24: =SUM(AJ15:AK23) -> -20.2331364 | AN24: =SUM(AN15:AO23) -> 26.38545598 | AT24: =SUM(AT15:AU23) -> -29.67304126 | AX24: =SUM(AX15:AY23) -> 26.19882712 | BD24: =SUM(BD15:BE23) -> -15.22339918
F28: 1.5 | H28: m | M28: 5 | O28: m | W28: 6 | Y28: m | AG28: 4.5 | AI28: m | AQ28: 6 | AS28: m | BA28: 5 | BC28: m | BH28: 1.5 | BJ28: m
J30: m | T30: m | AD30: m | AN30: m | AX30: m | BH30: m
J31: 0.6 | T31: 0.6 | AD31: 0.6 | AN31: 0.6 | AX31: 0.6 | BH31: 0.6
H34: 0.5 | J34: m | R34: 0.5 | T34: m | AB34: 0.5 | AD34: m | AL34: 0.5 | AN34: m | AV34: 0.5 | AX34: m | BF34: 0.5 | BH34: m
H36: =-J24 -> -15.22396665 | Q36: =+P24 -> -26.19879962 | S36: =-T24 -> -29.67347197 | AA36: =+Z24 -> -26.38508448 | AC36: =-AD24 -> -20.23345622 | AK36: =+AJ24 -> -20.2331364 | AM36: =-AN24 -> -26.38545598 | AU36: =+AT24 -> -29.67304126 | AW36: =-AX24 -> -26.19882712 | BF36: =+BD24 -> -15.22339918
K37: moment diyagramı (KNm)
G38: =IF(F15=0,"",+F15) -> -11.25 | BG38: =IF(BH15=0,"",-BH15) -> -11.25
K40: =IF(E7>0,E7,"") ->  | O40: =IF(Q7<0,Q7,"") -> -3.474672355 | U40: =IF(Q7>0,Q7,"") ->  | Y40: =IF(AA7<0,AA7,"") ->  | AE40: =IF(AA7>0,AA7,"") -> 6.151628255 | AI40: =IF(AK7<0,AK7,"") -> -6.15231958 | AO40: =IF(AK7>0,AK7,"") ->  | AS40: =IF(AU7<0,AU7,"") ->  | AY40: =IF(AU7>0,AU7,"") -> 3.474214148 | BC40: =IF(BH7<0,BH7,"") -> 
E41: =IF(E7<0,E7,"") -> -3.97396665 | BI41: =IF(BH7>0,BH7,"") -> 3.973399176
M44: =(((J24-(-P24))/M28+M13*M28*0.5)^2/(2*M13))-J24 -> 10.77951078 | W44: =(((T24-(-Z24))/W28+W13*W28*0.5)^2/(2*W13))-T24 -> 16.98574051 | AG44: =(((AD24-(-AJ24))/AG28+AG13*AG28*0.5)^2/(2*AG13))-AD24 -> 5.079203687 | AQ44: =(((AN24-(-AT24))/AQ28+AQ13*AQ28*0.5)^2/(2*AQ13))-AN24 -> 16.98576279 | BA44: =(((AX24-(-BD24))/BA28+BA13*BA28*0.5)^2/(2*BA13))-AX24 -> 10.77980689
E52: =IF(E7>0,-E7/2,"") ->  | K52: =IF(E7<0,-E7/2,"") -> 1.986983325 | O52: =IF(Q7>0,-Q7/2,"") ->  | U52: =IF(Q7<0,-Q7/2,"") -> 1.737336178 | Y52: =IF(AA7>0,-AA7/2,"") -> -3.075814127 | AE52: =IF(AA7<0,-AA7/2,"") ->  | AI52: =IF(AK7>0,-AK7/2,"") ->  | AO52: =IF(AK7<0,-AK7/2,"") -> 3.07615979 | AS52: =IF(AU7>0,-AU7/2,"") -> -1.737107074 | AY52: =IF(AU7<0,-AU7/2,"") ->  | BC52: =IF(BH7>0,-BH7/2,"") -> -1.986699588 | BI52: =IF(BH7<0,-BH7/2,"") -> 
K54: kesme kuvveti diyagramı (KN)
G55: =M13*M28+Q61 -> 22.80503341 | Q55: =W13*W28+AA61 -> 30.54806458 | AA55: =AG13*AG28+AK61 -> 22.50007107 | AK55: =AQ13*AQ28+AU61 -> 29.45206912 | AU55: =BA13*BA28+BE61 -> 27.19508559 | BE55: =IF(BH15=0,"",BI13*BH28) -> 15
E58: =IF(E69<0,E69,"") -> -1.703128564 | K58: =IF(K69>0,K69,"") ->  | O58: =IF(O69<0,O69,"") -> -1.489145295 | U58: =IF(U69>0,U69,"") ->  | Y58: =IF(Y69<0,Y69,"") ->  | AE58: =IF(AE69>0,AE69,"") -> 2.636412109 | AI58: =IF(AI69<0,AI69,"") -> -2.636708391 | AO58: =IF(AO69>0,AO69,"") ->  | AS58: =IF(AS69<0,AS69,"") ->  | AY58: =IF(AY69>0,AY69,"") -> 1.488948921 | BC58: =IF(BD69<0,BD69,"") ->  | BI58: =IF(BI69>0,BI69,"") -> 1.702885361
I61: =IF(F15=0,"",-E13*F28) -> -15 | Q61: =-(0.5*M13*M28^2+(-P24)-J24)/M28 -> -27.19496659 | AA61: =-(0.5*W13*W28^2+(-Z24)-T24)/W28 -> -29.45193542 | AK61: =-(0.5*AG13*AG28^2+(-AJ24)-AD24)/AG28 -> -22.49992893 | AU61: =-(0.5*AQ13*AQ28^2+(-AT24)-AN24)/AQ28 -> -30.54793088 | BE61: =-(0.5*BA13*BA28^2+(-BD24)-AX24)/BA28 -> -22.80491441
J63: =((M13*M28-((0.5*M13*M28^2+(-P24)-J24)/M28))*M28)/((M13*M28-((0.5*M13*M28^2+(-P24)-J24)/M28))+((0.5*M13*M28^2+(-P24)-J24)/M28)) -> 2.280503341 | L63: m | O63: =+M28-J63 -> 2.719496659 | Q63: m | T63: =((W13*W28-((0.5*W13*W28^2+(-Z24)-T24)/W28))*W28)/((W13*W28-((0.5*W13*W28^2+(-Z24)-T24)/W28))+((0.5*W13*W28^2+(-Z24)-T24)/W28)) -> 3.054806458 | V63: m | Y63: =+W28-T63 -> 2.945193542 | AA63: m | AD63: =((AG13*AG28-((0.5*AG13*AG28^2+(-AJ24)-AD24)/AG28))*AG28)/((AG13*AG28-((0.5*AG13*AG28^2+(-AJ24)-AD24)/AG28))+((0.5*AG13*AG28^2+(-AJ24)-AD24)/AG28)) -> 2.250007107 | AF63: m | AI63: =+AG28-AD63 -> 2.249992893 | AK63: m | AN63: =((AQ13*AQ28-((0.5*AQ13*AQ28^2+(-AT24)-AN24)/AQ28))*AQ28)/((AQ13*AQ28-((0.5*AQ13*AQ28^2+(-AT24)-AN24)/AQ28))+((0.5*AQ13*AQ28^2+(-AT24)-AN24)/AQ28)) -> 2.945206912 | AP63: m | AS63: =+AQ28-AN63 -> 3.054793088 | AU63: m | AX63: =((BA13*BA28-((0.5*BA13*BA28^2+(-BD24)-AX24)/BA28))*BA28)/((BA13*BA28-((0.5*BA13*BA28^2+(-BD24)-AX24)/BA28))+((0.5*BA13*BA28^2+(-BD24)-AX24)/BA28)) -> 2.719508559 | AZ63: m | BC63: =+BA28-AX63 -> 2.280491441 | BE63: m
E69: =IF(E7<0,(E7+E7/2)/$BL$19,"") -> -1.703128564 | K69: =IF(E7>0,(E7+E7/2)/$BL$19,"") ->  | O69: =IF(Q7<0,(Q7+Q7/2)/$BL$19,"") -> -1.489145295 | U69: =IF(Q7>0,(Q7+Q7/2)/$BL$19,"") ->  | Y69: =IF(AA7<0,(AA7+AA7/2)/$BL$19,"") ->  | AE69: =IF(AA7>0,(AA7+AA7/2)/$BL$19,"") -> 2.636412109 | AI69: =IF(AK7<0,(AK7+AK7/2)/$BL$19,"") -> -2.636708391 | AO69: =IF(AK7>0,(AK7+AK7/2)/$BL$19,"") ->  | AS69: =IF(AU7<0,(AU7+AU7/2)/$BL$19,"") ->  | AY69: =IF(AU7>0,(AU7+AU7/2)/$BL$19,"") -> 1.488948921 | BD69: =IF(BH7<0,(BH7+BH7/2)/$BL$19,"") ->  | BI69: =IF(BH7>0,(BH7+BH7/2)/$BL$19,"") -> 1.702885361
C71: kiriş faydalı yükseklik d (m) | I71: =P8-$N$3 -> 0.57 | S71: =Z8-$N$3 -> 0.57 | AC71: =AJ8-$N$3 -> 0.57 | AM71: =AT8-$N$3 -> 0.57 | AW71: =BD8-$N$3 -> 0.57
C73: kiriş kolon yüzünden d mesafede kesme kuvveti (KN) | I73: =(M13*M28-((0.5*M13*M28^2-P24-J24)/M28))-M13*(H34/2+I71) -> 14.60503341 | P73: =((0.5*M13*M28^2-P24-J24)/M28)-M13*(R34/2+I71) -> 18.99496659 | S73: =(W13*W28-((0.5*W13*W28^2-Z24-T24)/W28))-W13*(R34/2+S71) -> 22.34806458 | Z73: =((0.5*W13*W28^2-Z24-T24)/W28)-W13*(AB34/2+S71) -> 21.25193542 | AC73: =(AG13*AG28-((0.5*AG13*AG28^2-AJ24-AD24)/AG28))-AG13*(AB34/2+AC71) -> 14.30007107 | AJ73: =((0.5*AG13*AG28^2-AJ24-AD24)/AG28)-AG13*(AL34/2+AC71) -> 14.29992893 | AM73: =(AQ13*AQ28-((0.5*AQ13*AQ28^2-AT24-AN24)/AQ28))-AQ13*(AL34/2+AM71) -> 21.25206912 | AT73: =((0.5*AQ13*AQ28^2-AT24-AN24)/AQ28)-AQ13*(AV34/2+AM71) -> 22.34793088 | AW73: =(BA13*BA28-((0.5*BA13*BA28^2-BD24-AX24)/BA28))-BA13*(AV34/2+AW71) -> 18.99508559 | BD73: =((0.5*BA13*BA28^2-BD24-AX24)/BA28)-BA13*(BF34/2+AW71) -> 14.60491441
C75: kiriş kolon yüzünden 2*h mesafede kesme kuvveti (KN) | I75: =(M13*M28-((0.5*M13*M28^2-P24-J24)/M28))-M13*(H34/2+2*P8) -> 8.305033406 | P75: =((0.5*M13*M28^2-P24-J24)/M28)-M13*(R34/2+2*P8) -> 12.69496659 | S75: =(W13*W28-((0.5*W13*W28^2-Z24-T24)/W28))-W13*(R34/2+2*Z8) -> 16.04806458 | Z75: =((0.5*W13*W28^2-Z24-T24)/W28)-W13*(AB34/2+2*Z8) -> 14.95193542 | AC75: =(AG13*AG28-((0.5*AG13*AG28^2-AJ24-AD24)/AG28))-AG13*(AB34/2+2*AJ8) -> 8.000071071 | AJ75: =((0.5*AG13*AG28^2-AJ24-AD24)/AG28)-AG13*(AL34/2+2*AJ8) -> 7.999928929 | AM75: =(AQ13*AQ28-((0.5*AQ13*AQ28^2-AT24-AN24)/AQ28))-AQ13*(AL34/2+2*AT8) -> 14.95206912 | AT75: =((0.5*AQ13*AQ28^2-AT24-AN24)/AQ28)-AQ13*(AV34/2+2*AT8) -> 16.04793088 | AW75: =(BA13*BA28-((0.5*BA13*BA28^2-BD24-AX24)/BA28))-BA13*(AV34/2+2*BD8) -> 12.69508559 | BD75: =((0.5*BA13*BA28^2-BD24-AX24)/BA28)-BA13*(BF34/2+2*BD8) -> 8.304914412
C77: kiriş kolon yüzü kesme kuvveti (KN) | I77: =(M13*M28-((0.5*M13*M28^2-P24-J24)/M28))-M13*H34/2 -> 20.30503341 | P77: =((0.5*M13*M28^2-P24-J24)/M28)-M13*R34/2 -> 24.69496659 | S77: =(W13*W28-((0.5*W13*W28^2-Z24-T24)/W28))-W13*R34/2 -> 28.04806458 | Z77: =((0.5*W13*W28^2-Z24-T24)/W28)-W13*AB34/2 -> 26.95193542 | AC77: =(AG13*AG28-((0.5*AG13*AG28^2-AJ24-AD24)/AG28))-AG13*AB34/2 -> 20.00007107 | AJ77: =((0.5*AG13*AG28^2-AJ24-AD24)/AG28)-AG13*AL34/2 -> 19.99992893 | AM77: =(AQ13*AQ28-((0.5*AQ13*AQ28^2-AT24-AN24)/AQ28))-AQ13*AL34/2 -> 26.95206912 | AT77: =((0.5*AQ13*AQ28^2-AT24-AN24)/AQ28)-AQ13*AV34/2 -> 28.04793088 | AW77: =(BA13*BA28-((0.5*BA13*BA28^2-BD24-AX24)/BA28))-BA13*AV34/2 -> 24.69508559 | BD77: =((0.5*BA13*BA28^2-BD24-AX24)/BA28)-BA13*BF34/2 -> 20.30491441
C79: kiriş kolon yüzü moment (KNm) | I79: =+J24-(M13*M28-((0.5*M13*M28^2-P24-J24)/M28))*H34/3 -> 11.42312775 | P79: =-P24-((0.5*M13*M28^2-P24-J24)/M28)*R34/3 -> 21.66630519 | S79: =+T24-(W13*W28-((0.5*W13*W28^2-Z24-T24)/W28))*R34/3 -> 24.58212788 | Z79: =-Z24-((0.5*W13*W28^2-Z24-T24)/W28)*AB34/3 -> 21.47642858 | AC79: =+AD24-(AG13*AG28-((0.5*AG13*AG28^2-AJ24-AD24)/AG28))*AB34/3 -> 16.48344438 | AJ79: =-AJ24-((0.5*AG13*AG28^2-AJ24-AD24)/AG28)*AL34/3 -> 16.48314825 | AM79: =+AN24-(AQ13*AQ28-((0.5*AQ13*AQ28^2-AT24-AN24)/AQ28))*AL34/3 -> 21.4767778 | AT79: =-AT24-((0.5*AQ13*AQ28^2-AT24-AN24)/AQ28)*AV34/3 -> 24.58171945 | AW79: =+AX24-(BA13*BA28-((0.5*BA13*BA28^2-BD24-AX24)/BA28))*AV34/3 -> 21.66631285 | BD79: =-BD24-((0.5*BA13*BA28^2-BD24-AX24)/BA28)*BF34/3 -> 11.42258011

Sheet 6_aciklikli
B2: TEK KATLI ÇERÇEVE CROSS (6 AÇIKLIKLI) (inş.müh. Gürcan BERBEROĞLU tel: 0532 366 02 04 www.betoncelik.com )
J3: pas payı d ' = | N3: 0.03 | P3: m | V3: dikkat sadece sarı hücrelere rakam giriniz.
M5: 1.05 | O5: m | W5: 1.05 | Y5: m | AG5: 1.05 | AI5: m | AQ5: 1.05 | AS5: m | BA5: 1.05 | BC5: m | BK5: 1.05 | BM5: m
E7: =SUM(E8:F11) -> -3.40252274 | I7: 0.1 | K7: m | P7: m | Q7: =SUM(Q8:R11) -> -5.779459385 | S7: 0.1 | U7: m | Z7: m | AA7: =SUM(AA8:AB11) -> 8.2597361 | AC7: 0.1 | AE7: m | AJ7: m | AK7: =SUM(AK8:AL11) -> 1.782756427e-17 | AM7: 0.1 | AO7: m | AT7: m | AU7: =SUM(AU8:AV11) -> -8.2597361 | AW7: 0.1 | AY7: m | BD7: m | BE7: =SUM(BE8:BF11) -> 5.779459385 | BG7: 0.1 | BI7: m | BN7: m | BR7: =SUM(BR8:BS11) -> 3.40252274
E8: =-J21*H15 -> 0.005107206831 | P8: 0.6 | Q8: =-(P22+T22)*R15 -> -0.001270718151 | Z8: 0.6 | AA8: =-(Z21+AD21)*AB15 -> 0.002569031886 | AJ8: 0.6 | AK8: =-(AJ22+AN22)*AL15 -> 2.442132092e-19 | AT8: 0.6 | AU8: =-(AT21+AX21)*AV15 -> -0.002569031886 | BD8: 0.6 | BE8: =-(BD22+BH22)*BF15 -> 0.001270718151 | BN8: 0.6 | BR8: =-BN21*BP15 -> -0.005107206831
E9: =-J19*H15 -> 0.08284250323 | Q9: =-(P20+T20)*R15 -> -0.02061194622 | AA9: =-(Z19+AD19)*AB15 -> 0.0416715123 | AK9: =-(AJ20+AN20)*AL15 -> 1.953705673e-18 | AU9: =-(AT19+AX19)*AV15 -> -0.0416715123 | BE9: =-(BD20+BH20)*BF15 -> 0.02061194622 | BR9: =-BN19*BP15 -> -0.08284250323
E10: =-J17*H15 -> 1.343763934 | Q10: =-(P18+T18)*R15 -> -0.3343403308 | AA10: =-(Z17+AD17)*AB15 -> 0.675941372 | AK10: =-(AJ18+AN18)*AL15 -> 1.562964539e-17 | AU10: =-(AT17+AX17)*AV15 -> -0.675941372 | BE10: =-(BD18+BH18)*BF15 -> 0.3343403308 | BR10: =-BN17*BP15 -> -1.343763934
E11: =-(J15+F15)*H15 -> -4.834236384 | M11: 0.3 | O11: m | Q11: =-(P15+P16+T15+T16)*R15 -> -5.42323639 | W11: 0.3 | Y11: m | AA11: =-(Z15+AD15)*AB15 -> 7.539554184 | AG11: 0.3 | AI11: m | AK11: =-(AJ15+AJ16+AN15+AN16)*AL15 -> 0 | AQ11: 0.3 | AS11: m | AU11: =-(AT15+AX15)*AV15 -> -7.539554184 | BA11: 0.3 | BC11: m | BE11: =-(BD15+BD16+BH15+BH16)*BF15 -> 5.42323639 | BK11: 0.3 | BM11: m | BR11: =-(BN15+BR15)*BP15 -> 4.834236384
D13: q = | E13: 10 | G13: KN/m | L13: q = | M13: 10 | O13: KN/m | V13: q = | W13: 10 | Y13: KN/m | AF13: q = | AG13: 10 | AI13: KN/m | AP13: q = | AQ13: 10 | AS13: KN/m | AZ13: q = | BA13: 10 | BC13: KN/m | BJ13: q = | BK13: 10 | BM13: KN/m | BR13: q = | BS13: 10 | BU13: KN/m
G14: 0 | I14: =(4*M14/M28)/((4*M14/M28)+(4*H20/BV19)) -> 0.4955579426 | L14: I = | M14: =(M5*I7^3/12+I7*M5*(((I7*M5*I7/2+M11*(P8-I7)*((P8-I7)/2+I7))/(M5*I7+(P8-I7)*M11))-I7/2)^2+M11*(P8-I7)^3/12+M11*(P8-I7)*(P8-((I7*M5*I7/2+M11*(P8-I7)*((P8-I7)/2+I7))/(M5*I7+(P8-I7)*M11))-(P8-I7)/2)^2)*10000 -> 87.71323529 | O14: dm4 | Q14: =(4*M14/M28)/((4*M14/M28)+(4*R20/BV19)+(4*W14/W28)) -> 0.35878838 | S14: =(4*W14/W28)/((4*M14/M28)+(4*R20/BV19)+(4*W14/W28)) -> 0.2759910615 | V14: I = | W14: =(W5*S7^3/12+S7*W5*(((S7*W5*S7/2+W11*(Z8-S7)*((Z8-S7)/2+S7))/(W5*S7+(Z8-S7)*W11))-S7/2)^2+W11*(Z8-S7)^3/12+W11*(Z8-S7)*(Z8-((S7*W5*S7/2+W11*(Z8-S7)*((Z8-S7)/2+S7))/(W5*S7+(Z8-S7)*W11))-(Z8-S7)/2)^2)*10000 -> 87.71323529 | Y14: dm4 | AA14: =(4*W14/W28)/((4*W14/W28)+(4*AB20/BV19)+(4*AG14/AG28)) -> 0.2492760129 | AC14: =(4*AG14/AG28)/((4*W14/W28)+(4*AB20/BV19)+(4*AG14/AG28)) -> 0.4208556061 | AF14: I = | AG14: =(AG5*AC7^3/12+AC7*AG5*(((AC7*AG5*AC7/2+AG11*(AJ8-AC7)*((AJ8-AC7)/2+AC7))/(AG5*AC7+(AJ8-AC7)*AG11))-AC7/2)^2+AG11*(AJ8-AC7)^3/12+AG11*(AJ8-AC7)*(AJ8-((AC7*AG5*AC7/2+AG11*(AJ8-AC7)*((AJ8-AC7)/2+AC7))/(AG5*AC7+(AJ8-AC7)*AG11))-(AJ8-AC7)/2)^2)*10000 -> 87.71323529 | AI14: dm4 | AK14: =(4*AG14/AG28)/((4*AG14/AG28)+(4*AL20/BV19)+(4*AQ14/AQ28)) -> 0.3592206697 | AM14: =(4*AQ14/AQ28)/((4*AG14/AG28)+(4*AL20/BV19)+(4*AQ14/AQ28)) -> 0.3592206697 | AP14: I = | AQ14: =(AQ5*AM7^3/12+AM7*AQ5*(((AM7*AQ5*AM7/2+AQ11*(AT8-AM7)*((AT8-AM7)/2+AM7))/(AQ5*AM7+(AT8-AM7)*AQ11))-AM7/2)^2+AQ11*(AT8-AM7)^3/12+AQ11*(AT8-AM7)*(AT8-((AM7*AQ5*AM7/2+AQ11*(AT8-AM7)*((AT8-AM7)/2+AM7))/(AQ5*AM7+(AT8-AM7)*AQ11))-(AT8-AM7)/2)^2)*10000 -> 87.71323529 | AS14: dm4 | AU14: =(4*AQ14/AQ28)/((4*AQ14/AQ28)+(4*AV20/BV19)+(4*BA14/BA28)) -> 0.4208556061 | AW14: =(4*BA14/BA28)/((4*AQ14/AQ28)+(4*AV20/BV19)+(4*BA14/BA28)) -> 0.2492760129 | AZ14: I = | BA14: =(BA5*AW7^3/12+AW7*BA5*(((AW7*BA5*AW7/2+BA11*(BD8-AW7)*((BD8-AW7)/2+AW7))/(BA5*AW7+(BD8-AW7)*BA11))-AW7/2)^2+BA11*(BD8-AW7)^3/12+BA11*(BD8-AW7)*(BD8-((AW7*BA5*AW7/2+BA11*(BD8-AW7)*((BD8-AW7)/2+AW7))/(BA5*AW7+(BD8-AW7)*BA11))-(BD8-AW7)/2)^2)*10000 -> 87.71323529 | BC14: dm4 | BE14: =(4*BA14/BA28)/((4*BA14/BA28)+(4*BF20/BV19)+(4*BK14/BK28)) -> 0.2759910615 | BG14: =(4*BK14/BK28)/((4*BA14/BA28)+(4*BF20/BV19)+(4*BK14/BK28)) -> 0.35878838 | BJ14: I = | BK14: =(BK5*BG7^3/12+BG7*BK5*(((BG7*BK5*BG7/2+BK11*(BN8-BG7)*((BN8-BG7)/2+BG7))/(BK5*BG7+(BN8-BG7)*BK11))-BG7/2)^2+BK11*(BN8-BG7)^3/12+BK11*(BN8-BG7)*(BN8-((BG7*BK5*BG7/2+BK11*(BN8-BG7)*((BN8-BG7)/2+BG7))/(BK5*BG7+(BN8-BG7)*BK11))-(BN8-BG7)/2)^2)*10000 -> 87.71323529 | BM14: dm4 | BO14: =(4*BK14/BK28)/((4*BK14/BK28)+(4*BP20/BV19)) -> 0.4955579426 | BQ14: 0
F15: =-E13*F28^2/2 -> -11.25 | H15: =(4*H20/BV19)/((4*M14/M28)+(4*H20/BV19)) -> 0.5044420574 | J15: =M13*M28^2/12 -> 20.83333333 | P15: =-M13*M28^2/12 -> -20.83333333 | R15: =(4*R20/BV19)/((4*M14/M28)+(4*R20/BV19)+(4*W14/W28)) -> 0.3652205585 | T15: =W13*W28^2/12 -> 35.20833333 | Z15: =-W13*W28^2/12 -> -35.20833333 | AB15: =(4*AB20/BV19)/((4*W14/W28)+(4*AB20/BV19)+(4*AG14/AG28)) -> 0.329868381 | AD15: =AG13*AG28^2/12 -> 12.35208333 | AJ15: =-AG13*AG28^2/12 -> -12.35208333 | AL15: =(4*AL20/BV19)/((4*AG14/AG28)+(4*AL20/BV19)+(4*AQ14/AQ28)) -> 0.2815586606 | AN15: =AQ13*AQ28^2/12 -> 12.35208333 | AT15: =-AQ13*AQ28^2/12 -> -12.35208333 | AV15: =(4*AV20/BV19)/((4*AQ14/AQ28)+(4*AV20/BV19)+(4*BA14/BA28)) -> 0.329868381 | AX15: =BA13*BA28^2/12 -> 35.20833333 | BD15: =-BA13*BA28^2/12 -> -35.20833333 | BF15: =(4*BF20/BV19)/((4*BA14/BA28)+(4*BF20/BV19)+(4*BK14/BK28)) -> 0.3652205585 | BH15: =BK13*BK28^2/12 -> 20.83333333 | BN15: =-BK13*BK28^2/12 -> -20.83333333 | BP15: =(4*BP20/BV19)/((4*BK14/BK28)+(4*BP20/BV19)) -> 0.5044420574 | BR15: =BS13*BR28^2/2 -> 11.25
J16: =-(J15+F15)*I14 -> -4.74909695 | P16: =+J16/2 -> -2.374548475 | T16: =+Z16/2 -> 2.848757434 | Z16: =-(Z15+AD15)*AA14 -> 5.697514869 | AD16: =-(Z15+AD15)*AC14 -> 9.619180947 | AJ16: =+AD16/2 -> 4.809590474 | AN16: =+AT16/2 -> -4.809590474 | AT16: =-(AT15+AX15)*AU14 -> -9.619180947 | AX16: =-(AT15+AX15)*AW14 -> -5.697514869 | BD16: =+AX16/2 -> -2.848757434 | BH16: =+BN16/2 -> 2.374548475 | BN16: =-(BN15+BR15)*BO14 -> 4.74909695
J17: =+P17/2 -> -2.663861813 | P17: =-(P15+P16+T15+T16)*Q14 -> -5.327723626 | T17: =-(P15+P16+T15+T16)*S14 -> -4.098248943 | Z17: =+T17/2 -> -2.049124472 | AD17: =+AJ17/2 -> 0 | AJ17: =-(AJ15+AJ16+AN15+AN16)*AK14 -> 0 | AN17: =-(AJ15+AJ16+AN15+AN16)*AM14 -> 0 | AT17: =+AN17/2 -> 0 | AX17: =+BD17/2 -> 2.049124472 | BD17: =-(BD15+BD16+BH15+BH16)*BE14 -> 4.098248943 | BH17: =-(BD15+BD16+BH15+BH16)*BG14 -> 5.327723626 | BN17: =+BH17/2 -> 2.663861813
H18: dm4 | J18: =-J17*I14 -> 1.320097879 | P18: =+J18/2 -> 0.6600489397 | R18: dm4 | T18: =+Z18/2 -> 0.2553987891 | Z18: =-(Z17+AD17)*AA14 -> 0.5107975782 | AB18: dm4 | AD18: =-(Z17+AD17)*AC14 -> 0.8623855216 | AJ18: =+AD18/2 -> 0.4311927608 | AL18: dm4 | AN18: =+AT18/2 -> -0.4311927608 | AT18: =-(AT17+AX17)*AU14 -> -0.8623855216 | AV18: dm4 | AX18: =-(AT17+AX17)*AW14 -> -0.5107975782 | BD18: =+AX18/2 -> -0.2553987891 | BF18: dm4 | BH18: =+BN18/2 -> -0.6600489397 | BN18: =-BN17*BO14 -> -1.320097879 | BP18: dm4 | BV18: m
J19: =+P19/2 -> -0.1642260038 | P19: =-(P18+T18)*Q14 -> -0.3284520076 | T19: =-(P18+T18)*S14 -> -0.2526553904 | Z19: =+T19/2 -> -0.1263276952 | AD19: =+AJ19/2 -> 9.970376461e-18 | AJ19: =-(AJ18+AN18)*AK14 -> 1.994075292e-17 | AN19: =-(AJ18+AN18)*AM14 -> 1.994075292e-17 | AT19: =+AN19/2 -> 9.970376461e-18 | AX19: =+BD19/2 -> 0.1263276952 | BD19: =-(BD18+BH18)*BE14 -> 0.2526553904 | BH19: =-(BD18+BH18)*BG14 -> 0.3284520076 | BN19: =+BH19/2 -> 0.1642260038 | BV19: 3.5
H20: =J31*H34^3/12*10000 -> 62.5 | J20: =-J19*I14 -> 0.08138350056 | P20: =+J20/2 -> 0.04069175028 | R20: =T31*R34^3/12*10000 -> 62.5 | T20: =+Z20/2 -> 0.01574523209 | Z20: =-(Z19+AD19)*AA14 -> 0.03149046418 | AB20: =AD31*AB34^3/12*10000 -> 62.5 | AD20: =-(Z19+AD19)*AC14 -> 0.05316571874 | AJ20: =+AD20/2 -> 0.02658285937 | AL20: =AN31*AL34^3/12*10000 -> 62.5 | AN20: =+AT20/2 -> -0.02658285937 | AT20: =-(AT19+AX19)*AU14 -> -0.05316571874 | AV20: =AX31*AV34^3/12*10000 -> 62.5 | AX20: =-(AT19+AX19)*AW14 -> -0.03149046418 | BD20: =+AX20/2 -> -0.01574523209 | BF20: =BH31*BF34^3/12*10000 -> 62.5 | BH20: =+BN20/2 -> -0.04069175028 | BN20: =-BN19*BO14 -> -0.08138350056 | BP20: =BR31*BP34^3/12*10000 -> 62.5
J21: =+P21/2 -> -0.01012446674 | P21: =-(P20+T20)*Q14 -> -0.02024893347 | T21: =-(P20+T20)*S14 -> -0.01557610267 | Z21: =+T21/2 -> -0.007788051336 | AD21: =+AJ21/2 -> 1.246297058e-18 | AJ21: =-(AJ20+AN20)*AK14 -> 2.492594115e-18 | AN21: =-(AJ20+AN20)*AM14 -> 2.492594115e-18 | AT21: =+AN21/2 -> 1.246297058e-18 | AX21: =+BD21/2 -> 0.007788051336 | BD21: =-(BD20+BH20)*BE14 -> 0.01557610267 | BH21: =-(BD20+BH20)*BG14 -> 0.02024893347 | BN21: =+BH21/2 -> 0.01012446674
J22: =-J21*I14 -> 0.005017259906 | P22: =+J22/2 -> 0.002508629953 | T22: =+Z22/2 -> 0.0009706871925 | Z22: =-(Z21+AD21)*AA14 -> 0.001941374385 | AD22: =-(Z21+AD21)*AC14 -> 0.003277645066 | AJ22: =+AD22/2 -> 0.001638822533 | AN22: =+AT22/2 -> -0.001638822533 | AT22: =-(AT21+AX21)*AU14 -> -0.003277645066 | AX22: =-(AT21+AX21)*AW14 -> -0.001941374385 | BD22: =+AX22/2 -> -0.0009706871925 | BH22: =+BN22/2 -> -0.002508629953 | BN22: =-BN21*BO14 -> -0.005017259906
H23: I = | P23: =-(P22+T22)*Q14 -> -0.001248338562 | R23: I = | T23: =-(P22+T22)*S14 -> -0.0009602604323 | AB23: I = | AJ23: =-(AJ22+AN22)*AK14 -> 3.115742644e-19 | AL23: I = | AN23: =-(AJ22+AN22)*AM14 -> 3.115742644e-19 | AV23: I = | BD23: =-(BD22+BH22)*BE14 -> 0.0009602604323 | BF23: I = | BH23: =-(BD22+BH22)*BG14 -> 0.001248338562 | BP23: I =
J24: =SUM(J15:K23) -> 14.65252274 | P24: =SUM(P15:Q23) -> -28.18230539 | T24: =SUM(T15:U23) -> 33.96176478 | Z24: =SUM(Z15:AA23) -> -31.14982927 | AD24: =SUM(AD15:AE23) -> 22.89009317 | AJ24: =SUM(AJ15:AK23) -> -7.083078417 | AN24: =SUM(AN15:AO23) -> 7.083078417 | AT24: =SUM(AT15:AU23) -> -22.89009317 | AX24: =SUM(AX15:AY23) -> 31.14982927 | BD24: =SUM(BD15:BE23) -> -33.96176478 | BH24: =SUM(BH15:BI23) -> 28.18230539 | BN24: =SUM(BN15:BO23) -> -14.65252274
F28: 1.5 | H28: m | M28: 5 | O28: m | W28: 6.5 | Y28: m | AG28: 3.85 | AI28: m | AQ28: 3.85 | AS28: m | BA28: 6.5 | BC28: m | BK28: 5 | BM28: m | BR28: 1.5 | BT28: m
J30: m | T30: m | AD30: m | AN30: m | AX30: m | BH30: m | BR30: m
J31: 0.6 | T31: 0.6 | AD31: 0.6 | AN31: 0.6 | AX31: 0.6 | BH31: 0.6 | BR31: 0.6
H34: 0.5 | J34: m | R34: 0.5 | T34: m | AB34: 0.5 | AD34: m | AL34: 0.5 | AN34: m | AV34: 0.5 | AX34: m | BF34: 0.5 | BH34: m | BP34: 0.5 | BR34: m
H36: =-J24 -> -14.65252274 | Q36: =+P24 -> -28.18230539 | S36: =-T24 -> -33.96176478 | AA36: =+Z24 -> -31.14982927 | AC36: =-AD24 -> -22.89009317 | AK36: =+AJ24 -> -7.083078417 | AM36: =-AN24 -> -7.083078417 | AU36: =+AT24 -> -22.89009317 | AW36: =-AX24 -> -31.14982927 | BE36: =+BD24 -> -33.96176478 | BG36: =-BH24 -> -28.18230539 | BP36: =+BN24 -> -14.65252274
K37: moment diyagramı (KNm)
G38: =IF(F15=0,"",+F15) -> -11.25 | BQ38: =IF(BR15=0,"",-BR15) -> -11.25
K40: =IF(E7>0,E7,"") ->  | O40: =IF(Q7<0,Q7,"") -> -5.779459385 | U40: =IF(Q7>0,Q7,"") ->  | Y40: =IF(AA7<0,AA7,"") ->  | AE40: =IF(AA7>0,AA7,"") -> 8.2597361 | AI40: =IF(AK7<0,AK7,"") ->  | AO40: =IF(AK7>0,AK7,"") -> 1.782756427e-17 | AS40: =IF(AU7<0,AU7,"") -> -8.2597361 | AY40: =IF(AU7>0,AU7,"") ->  | BC40: =IF(BE7<0,BE7,"") ->  | BI40: =IF(BE7>0,BE7,"") -> 5.779459385 | BM40: =IF(BR7<0,BR7,"") -> 
E41: =IF(E7<0,E7,"") -> -3.40252274 | BS41: =IF(BR7>0,BR7,"") -> 3.40252274
M44: =(((J24-(-P24))/M28+M13*M28*0.5)^2/(2*M13))-J24 -> 10.19869597 | W44: =(((T24-(-Z24))/W28+W13*W28*0.5)^2/(2*W13))-T24 -> 20.26606035 | AG44: =(((AD24-(-AJ24))/AG28+AG13*AG28*0.5)^2/(2*AG13))-AD24 -> 4.384385271 | AQ44: =(((AN24-(-AT24))/AQ28+AQ13*AQ28*0.5)^2/(2*AQ13))-AN24 -> 4.384385271 | BA44: =(((AX24-(-BD24))/BA28+BA13*BA28*0.5)^2/(2*BA13))-AX24 -> 20.26606035 | BK44: =(((BH24-(-BN24))/BK28+BK13*BK28*0.5)^2/(2*BK13))-BH24 -> 10.19869597
E52: =IF(E7>0,-E7/2,"") ->  | K52: =IF(E7<0,-E7/2,"") -> 1.70126137 | O52: =IF(Q7>0,-Q7/2,"") ->  | U52: =IF(Q7<0,-Q7/2,"") -> 2.889729692 | Y52: =IF(AA7>0,-AA7/2,"") -> -4.12986805 | AE52: =IF(AA7<0,-AA7/2,"") ->  | AI52: =IF(AK7>0,-AK7/2,"") -> -8.913782135e-18 | AO52: =IF(AK7<0,-AK7/2,"") ->  | AS52: =IF(AU7>0,-AU7/2,"") ->  | AY52: =IF(AU7<0,-AU7/2,"") -> 4.12986805 | BC52: =IF(BE7>0,-BE7/2,"") -> -2.889729692 | BI52: =IF(BE7<0,-BE7/2,"") ->  | BM52: =IF(BR7>0,-BR7/2,"") -> -1.70126137 | BS52: =IF(BR7<0,-BR7/2,"") -> 
K54: kesme kuvveti diyagramı (KN)
G55: =M13*M28+Q61 -> 22.29404347 | Q55: =W13*W28+AA61 -> 32.93260546 | AA55: =AG13*AG28+AK61 -> 23.35571812 | AK55: =AQ13*AQ28+AU61 -> 15.14428188 | AU55: =BA13*BA28+BE61 -> 32.06739454 | BE55: =BK13*BK28+BO61 -> 27.70595653 | BO55: =IF(BR15=0,"",BS13*BR28) -> 15
E58: =IF(E69<0,E69,"") -> -1.458224031 | K58: =IF(K69>0,K69,"") ->  | O58: =IF(O69<0,O69,"") -> -2.476911165 | U58: =IF(U69>0,U69,"") ->  | Y58: =IF(Y69<0,Y69,"") ->  | AE58: =IF(AE69>0,AE69,"") -> 3.5398869 | AI58: =IF(AI69<0,AI69,"") ->  | AO58: =IF(AO69>0,AO69,"") -> 7.640384687e-18 | AS58: =IF(AS69<0,AS69,"") -> -3.5398869 | AY58: =IF(AY69>0,AY69,"") ->  | BC58: =IF(BC69<0,BC69,"") ->  | BI58: =IF(BI69>0,BI69,"") -> 2.476911165 | BM58: =IF(BN69<0,BN69,"") ->  | BS58: =IF(BS69>0,BS69,"") -> 1.458224031
I61: =IF(F15=0,"",-E13*F28) -> -15 | Q61: =-(0.5*M13*M28^2+(-P24)-J24)/M28 -> -27.70595653 | AA61: =-(0.5*W13*W28^2+(-Z24)-T24)/W28 -> -32.06739454 | AK61: =-(0.5*AG13*AG28^2+(-AJ24)-AD24)/AG28 -> -15.14428188 | AU61: =-(0.5*AQ13*AQ28^2+(-AT24)-AN24)/AQ28 -> -23.35571812 | BE61: =-(0.5*BA13*BA28^2+(-BD24)-AX24)/BA28 -> -32.93260546 | BO61: =-(0.5*BK13*BK28^2+(-BN24)-BH24)/BK28 -> -22.29404347
J63: =((M13*M28-((0.5*M13*M28^2+(-P24)-J24)/M28))*M28)/((M13*M28-((0.5*M13*M28^2+(-P24)-J24)/M28))+((0.5*M13*M28^2+(-P24)-J24)/M28)) -> 2.229404347 | L63: m | O63: =+M28-J63 -> 2.770595653 | Q63: m | T63: =((W13*W28-((0.5*W13*W28^2+(-Z24)-T24)/W28))*W28)/((W13*W28-((0.5*W13*W28^2+(-Z24)-T24)/W28))+((0.5*W13*W28^2+(-Z24)-T24)/W28)) -> 3.293260546 | V63: m | Y63: =+W28-T63 -> 3.206739454 | AA63: m | AD63: =((AG13*AG28-((0.5*AG13*AG28^2+(-AJ24)-AD24)/AG28))*AG28)/((AG13*AG28-((0.5*AG13*AG28^2+(-AJ24)-AD24)/AG28))+((0.5*AG13*AG28^2+(-AJ24)-AD24)/AG28)) -> 2.335571812 | AF63: m | AI63: =+AG28-AD63 -> 1.514428188 | AK63: m | AN63: =((AQ13*AQ28-((0.5*AQ13*AQ28^2+(-AT24)-AN24)/AQ28))*AQ28)/((AQ13*AQ28-((0.5*AQ13*AQ28^2+(-AT24)-AN24)/AQ28))+((0.5*AQ13*AQ28^2+(-AT24)-AN24)/AQ28)) -> 1.514428188 | AP63: m | AS63: =+AQ28-AN63 -> 2.335571812 | AU63: m | AX63: =((BA13*BA28-((0.5*BA13*BA28^2+(-BD24)-AX24)/BA28))*BA28)/((BA13*BA28-((0.5*BA13*BA28^2+(-BD24)-AX24)/BA28))+((0.5*BA13*BA28^2+(-BD24)-AX24)/BA28)) -> 3.206739454 | AZ63: m | BC63: =+BA28-AX63 -> 3.293260546 | BE63: m | BH63: =((BK13*BK28-((0.5*BK13*BK28^2+(-BN24)-BH24)/BK28))*BK28)/((BK13*BK28-((0.5*BK13*BK28^2+(-BN24)-BH24)/BK28))+((0.5*BK13*BK28^2+(-BN24)-BH24)/BK28)) -> 2.770595653 | BJ63: m | BM63: =+BK28-BH63 -> 2.229404347 | BO63: m
E69: =IF(E7<0,(E7+E7/2)/$BV$19,"") -> -1.458224031 | K69: =IF(E7>0,(E7+E7/2)/$BV$19,"") ->  | O69: =IF(Q7<0,(Q7+Q7/2)/$BV$19,"") -> -2.476911165 | U69: =IF(Q7>0,(Q7+Q7/2)/$BV$19,"") ->  | Y69: =IF(AA7<0,(AA7+AA7/2)/$BV$19,"") ->  | AE69: =IF(AA7>0,(AA7+AA7/2)/$BV$19,"") -> 3.5398869 | AI69: =IF(AK7<0,(AK7+AK7/2)/$BV$19,"") ->  | AO69: =IF(AK7>0,(AK7+AK7/2)/$BV$19,"") -> 7.640384687e-18 | AS69: =IF(AU7<0,(AU7+AU7/2)/$BV$19,"") -> -3.5398869 | AY69: =IF(AU7>0,(AU7+AU7/2)/$BV$19,"") ->  | BC69: =IF(BE7<0,(BE7+BE7/2)/$BV$19,"") ->  | BI69: =IF(BE7>0,(BE7+BE7/2)/$BV$19,"") -> 2.476911165 | BN69: =IF(BR7<0,(BR7+BR7/2)/$BV$19,"") ->  | BS69: =IF(BR7>0,(BR7+BR7/2)/$BV$19,"") -> 1.458224031
C71: kiriş faydalı yükseklik d (m) | I71: =P8-$N$3 -> 0.57 | S71: =Z8-$N$3 -> 0.57 | AC71: =AJ8-$N$3 -> 0.57 | AM71: =AT8-$N$3 -> 0.57 | AW71: =BD8-$N$3 -> 0.57 | BG71: =BN8-$N$3 -> 0.57
C73: kiriş kolon yüzünden d mesafede kesme kuvveti (KN) | I73: =(M13*M28-((0.5*M13*M28^2-P24-J24)/M28))-M13*(H34/2+I71) -> 14.09404347 | P73: =((0.5*M13*M28^2-P24-J24)/M28)-M13*(R34/2+I71) -> 19.50595653 | S73: =(W13*W28-((0.5*W13*W28^2-Z24-T24)/W28))-W13*(R34/2+S71) -> 24.73260546 | Z73: =((0.5*W13*W28^2-Z24-T24)/W28)-W13*(AB34/2+S71) -> 23.86739454 | AC73: =(AG13*AG28-((0.5*AG13*AG28^2-AJ24-AD24)/AG28))-AG13*(AB34/2+AC71) -> 15.15571812 | AJ73: =((0.5*AG13*AG28^2-AJ24-AD24)/AG28)-AG13*(AL34/2+AC71) -> 6.944281883 | AM73: =(AQ13*AQ28-((0.5*AQ13*AQ28^2-AT24-AN24)/AQ28))-AQ13*(AL34/2+AM71) -> 6.944281883 | AT73: =((0.5*AQ13*AQ28^2-AT24-AN24)/AQ28)-AQ13*(AV34/2+AM71) -> 15.15571812 | AW73: =(BA13*BA28-((0.5*BA13*BA28^2-BD24-AX24)/BA28))-BA13*(AV34/2+AW71) -> 23.86739454 | BD73: =((0.5*BA13*BA28^2-BD24-AX24)/BA28)-BA13*(BF34/2+AW71) -> 24.73260546 | BG73: =(BK13*BK28-((0.5*BK13*BK28^2-BN24-BH24)/BK28))-BK13*(BF34/2+BG71) -> 19.50595653 | BN73: =((0.5*BK13*BK28^2-BN24-BH24)/BK28)-BK13*(BP34/2+BG71) -> 14.09404347
C75: kiriş kolon yüzünden 2*h mesafede kesme kuvveti (KN) | I75: =(M13*M28-((0.5*M13*M28^2-P24-J24)/M28))-M13*(H34/2+2*P8) -> 7.794043469 | P75: =((0.5*M13*M28^2-P24-J24)/M28)-M13*(R34/2+2*P8) -> 13.20595653 | S75: =(W13*W28-((0.5*W13*W28^2-Z24-T24)/W28))-W13*(R34/2+2*Z8) -> 18.43260546 | Z75: =((0.5*W13*W28^2-Z24-T24)/W28)-W13*(AB34/2+2*Z8) -> 17.56739454 | AC75: =(AG13*AG28-((0.5*AG13*AG28^2-AJ24-AD24)/AG28))-AG13*(AB34/2+2*AJ8) -> 8.855718117 | AJ75: =((0.5*AG13*AG28^2-AJ24-AD24)/AG28)-AG13*(AL34/2+2*AJ8) -> 0.6442818833 | AM75: =(AQ13*AQ28-((0.5*AQ13*AQ28^2-AT24-AN24)/AQ28))-AQ13*(AL34/2+2*AT8) -> 0.6442818833 | AT75: =((0.5*AQ13*AQ28^2-AT24-AN24)/AQ28)-AQ13*(AV34/2+2*AT8) -> 8.855718117 | AW75: =(BA13*BA28-((0.5*BA13*BA28^2-BD24-AX24)/BA28))-BA13*(AV34/2+2*BD8) -> 17.56739454 | BD75: =((0.5*BA13*BA28^2-BD24-AX24)/BA28)-BA13*(BF34/2+2*BD8) -> 18.43260546 | BG75: =(BK13*BK28-((0.5*BK13*BK28^2-BN24-BH24)/BK28))-BK13*(BF34/2+2*BN8) -> 13.20595653 | BN75: =((0.5*BK13*BK28^2-BN24-BH24)/BK28)-BK13*(BP34/2+2*BN8) -> 7.794043469
C77: kiriş kolon yüzü kesme kuvveti (KN) | I77: =(M13*M28-((0.5*M13*M28^2-P24-J24)/M28))-M13*H34/2 -> 19.79404347 | P77: =((0.5*M13*M28^2-P24-J24)/M28)-M13*R34/2 -> 25.20595653 | S77: =(W13*W28-((0.5*W13*W28^2-Z24-T24)/W28))-W13*R34/2 -> 30.43260546 | Z77: =((0.5*W13*W28^2-Z24-T24)/W28)-W13*AB34/2 -> 29.56739454 | AC77: =(AG13*AG28-((0.5*AG13*AG28^2-AJ24-AD24)/AG28))-AG13*AB34/2 -> 20.85571812 | AJ77: =((0.5*AG13*AG28^2-AJ24-AD24)/AG28)-AG13*AL34/2 -> 12.64428188 | AM77: =(AQ13*AQ28-((0.5*AQ13*AQ28^2-AT24-AN24)/AQ28))-AQ13*AL34/2 -> 12.64428188 | AT77: =((0.5*AQ13*AQ28^2-AT24-AN24)/AQ28)-AQ13*AV34/2 -> 20.85571812 | AW77: =(BA13*BA28-((0.5*BA13*BA28^2-BD24-AX24)/BA28))-BA13*AV34/2 -> 29.56739454 | BD77: =((0.5*BA13*BA28^2-BD24-AX24)/BA28)-BA13*BF34/2 -> 30.43260546 | BG77: =(BK13*BK28-((0.5*BK13*BK28^2-BN24-BH24)/BK28))-BK13*BF34/2 -> 25.20595653 | BN77: =((0.5*BK13*BK28^2-BN24-BH24)/BK28)-BK13*BP34/2 -> 19.79404347
C79: kiriş kolon yüzü moment (KNm) | I79: =+J24-(M13*M28-((0.5*M13*M28^2-P24-J24)/M28))*H34/3 -> 10.93684883 | P79: =-P24-((0.5*M13*M28^2-P24-J24)/M28)*R34/3 -> 23.56464597 | S79: =+T24-(W13*W28-((0.5*W13*W28^2-Z24-T24)/W28))*R34/3 -> 28.4729972 | Z79: =-Z24-((0.5*W13*W28^2-Z24-T24)/W28)*AB34/3 -> 25.80526351 | AC79: =+AD24-(AG13*AG28-((0.5*AG13*AG28^2-AJ24-AD24)/AG28))*AB34/3 -> 18.99747348 | AJ79: =-AJ24-((0.5*AG13*AG28^2-AJ24-AD24)/AG28)*AL34/3 -> 4.559031436 | AM79: =+AN24-(AQ13*AQ28-((0.5*AQ13*AQ28^2-AT24-AN24)/AQ28))*AL34/3 -> 4.559031436 | AT79: =-AT24-((0.5*AQ13*AQ28^2-AT24-AN24)/AQ28)*AV34/3 -> 18.99747348 | AW79: =+AX24-(BA13*BA28-((0.5*BA13*BA28^2-BD24-AX24)/BA28))*AV34/3 -> 25.80526351 | BD79: =-BD24-((0.5*BA13*BA28^2-BD24-AX24)/BA28)*BF34/3 -> 28.4729972 | BG79: =+BH24-(BK13*BK28-((0.5*BK13*BK28^2-BN24-BH24)/BK28))*BF34/3 -> 23.56464597 | BN79: =-BN24-((0.5*BK13*BK28^2-BN24-BH24)/BK28)*BP34/3 -> 10.93684883

Sheet 7_aciklikli
B2: TEK KATLI ÇERÇEVE CROSS (7 AÇIKLIKLI) (inş.müh. Gürcan BERBEROĞLU tel: 0532 366 02 04 www.betoncelik.com )
J3: pas payı d ' = | N3: 0.03 | P3: m | AF3: dikkat sadece sarı hücrelere rakam giriniz.
M5: 1.05 | O5: m | W5: 1.05 | Y5: m | AG5: 1.05 | AI5: m | AQ5: 1.05 | AS5: m | BA5: 1.05 | BC5: m | BK5: 1.05 | BM5: m | BU5: 1.05 | BW5: m
E7: =SUM(E8:F11) -> -3.477692628 | I7: 0.1 | K7: m | P7: m | Q7: =SUM(Q8:R11) -> -5.476878425 | S7: 0.1 | U7: m | Z7: m | AA7: =SUM(AA8:AB11) -> 6.164770292 | AC7: 0.1 | AE7: m | AJ7: m | AK7: =SUM(AK8:AL11) -> 1.198175997 | AM7: 0.1 | AO7: m | AT7: m | AU7: =SUM(AU8:AV11) -> -1.198708658 | AW7: 0.1 | AY7: m | BD7: m | BE7: =SUM(BE8:BF11) -> -6.165371435 | BG7: 0.1 | BI7: m | BN7: m | BO7: =SUM(BO8:BP11) -> 5.476659724 | BQ7: 0.1 | BS7: m | BX7: m | CB7: =SUM(CB8:CC11) -> 3.477235271
E8: =-J21*H15 -> 0.00578564439 | P8: 0.6 | Q8: =-(P22+T22)*R15 -> -0.002064528907 | Z8: 0.6 | AA8: =-(Z21+AD21)*AB15 -> 0.007439501208 | AJ8: 0.6 | AK8: =-(AJ22+AN22)*AL15 -> -0.002441887843 | AT8: 0.6 | AU8: =-(AT21+AX21)*AV15 -> 0.006753024483 | BD8: 0.6 | BE8: =-(BD22+BH22)*BF15 -> -0.001695118619 | BN8: 0.6 | BO8: =-(BN21+BR21)*BP15 -> 0.003369729401 | BX8: 0.6 | CB8: =-BX22*BZ15 -> -0.0008349480844
E9: =-J19*H15 -> 0.07204123303 | Q9: =-(P20+T20)*R15 -> -0.02335002184 | AA9: =-(Z19+AD19)*AB15 -> 0.0755549338 | AK9: =-(AJ20+AN20)*AL15 -> -0.02324969205 | AU9: =-(AT19+AX19)*AV15 -> 0.06040244558 | BE9: =-(BD20+BH20)*BF15 -> -0.01502761502 | BO9: =-(BN19+BR19)*BP15 -> 0.02915596278 | CB9: =-BX20*BZ15 -> -0.007224234464
E10: =-J17*H15 -> 1.278716878 | Q10: =-(P18+T18)*R15 -> -0.2907479705 | AA10: =-(Z17+AD17)*AB15 -> 0.4446056451 | AK10: =-(AJ18+AN18)*AL15 -> -0.196122683 | AU10: =-(AT17+AX17)*AV15 -> 0.6684835066 | BE10: =-(BD18+BH18)*BF15 -> -0.1487635707 | BO10: =-(BN17+BR17)*BP15 -> 0.1940885028 | CB10: =-BX18*BZ15 -> -0.04809104957
E11: =-(J15+F15)*H15 -> -4.834236384 | M11: 0.3 | O11: m | Q11: =-(P15+P16+T15+T16)*R15 -> -5.160715904 | W11: 0.3 | Y11: m | AA11: =-(Z15+AD15)*AB15 -> 5.637170212 | AG11: 0.3 | AI11: m | AK11: =-(AJ15+AJ16+AN15+AN16)*AL15 -> 1.41999026 | AQ11: 0.3 | AS11: m | AU11: =-(AT15+AX15)*AV15 -> -1.934347635 | BA11: 0.3 | BC11: m | BE11: =-(BD15+BD16+BH15+BH16)*BF15 -> -5.999885131 | BK11: 0.3 | BM11: m | BO11: =-(BN15+BR15)*BP15 -> 5.250045529 | BU11: 0.3 | BW11: m | CB11: =-(BX15+BX16+CB15)*BZ15 -> 3.533385503
D13: q = | E13: 10 | G13: KN/m | L13: q = | M13: 10 | O13: KN/m | V13: q = | W13: 10 | Y13: KN/m | AF13: q = | AG13: 10 | AI13: KN/m | AP13: q = | AQ13: 10 | AS13: KN/m | AZ13: q = | BA13: 10 | BC13: KN/m | BJ13: q = | BK13: 10 | BM13: KN/m | BT13: q = | BU13: 10 | BW13: KN/m | CB13: q = | CC13: 10 | CE13: KN/m
G14: 0 | I14: =(4*M14/M28)/((4*M14/M28)+(4*H20/CF19)) -> 0.4955579426 | L14: I = | M14: =(M5*I7^3/12+I7*M5*(((I7*M5*I7/2+M11*(P8-I7)*((P8-I7)/2+I7))/(M5*I7+(P8-I7)*M11))-I7/2)^2+M11*(P8-I7)^3/12+M11*(P8-I7)*(P8-((I7*M5*I7/2+M11*(P8-I7)*((P8-I7)/2+I7))/(M5*I7+(P8-I7)*M11))-(P8-I7)/2)^2)*10000 -> 87.71323529 | O14: dm4 | Q14: =(4*M14/M28)/((4*M14/M28)+(4*R20/CF19)+(4*W14/W28)) -> 0.35878838 | S14: =(4*W14/W28)/((4*M14/M28)+(4*R20/CF19)+(4*W14/W28)) -> 0.2759910615 | V14: I = | W14: =(W5*S7^3/12+S7*W5*(((S7*W5*S7/2+W11*(Z8-S7)*((Z8-S7)/2+S7))/(W5*S7+(Z8-S7)*W11))-S7/2)^2+W11*(Z8-S7)^3/12+W11*(Z8-S7)*(Z8-((S7*W5*S7/2+W11*(Z8-S7)*((Z8-S7)/2+S7))/(W5*S7+(Z8-S7)*W11))-(Z8-S7)/2)^2)*10000 -> 87.71323529 | Y14: dm4 | AA14: =(4*W14/W28)/((4*W14/W28)+(4*AB20/CF19)+(4*AG14/AG28)) -> 0.2729621242 | AC14: =(4*AG14/AG28)/((4*W14/W28)+(4*AB20/CF19)+(4*AG14/AG28)) -> 0.3658255273 | AF14: I = | AG14: =(AG5*AC7^3/12+AC7*AG5*(((AC7*AG5*AC7/2+AG11*(AJ8-AC7)*((AJ8-AC7)/2+AC7))/(AG5*AC7+(AJ8-AC7)*AG11))-AC7/2)^2+AG11*(AJ8-AC7)^3/12+AG11*(AJ8-AC7)*(AJ8-((AC7*AG5*AC7/2+AG11*(AJ8-AC7)*((AJ8-AC7)/2+AC7))/(AG5*AC7+(AJ8-AC7)*AG11))-(AJ8-AC7)/2)^2)*10000 -> 87.71323529 | AI14: dm4 | AK14: =(4*AG14/AG28)/((4*AG14/AG28)+(4*AL20/CF19)+(4*AQ14/AQ28)) -> 0.3125107743 | AM14: =(4*AQ14/AQ28)/((4*AG14/AG28)+(4*AL20/CF19)+(4*AQ14/AQ28)) -> 0.3789193139 | AP14: I = | AQ14: =(AQ5*AM7^3/12+AM7*AQ5*(((AM7*AQ5*AM7/2+AQ11*(AT8-AM7)*((AT8-AM7)/2+AM7))/(AQ5*AM7+(AT8-AM7)*AQ11))-AM7/2)^2+AQ11*(AT8-AM7)^3/12+AQ11*(AT8-AM7)*(AT8-((AM7*AQ5*AM7/2+AQ11*(AT8-AM7)*((AT8-AM7)/2+AM7))/(AQ5*AM7+(AT8-AM7)*AQ11))-(AT8-AM7)/2)^2)*10000 -> 87.71323529 | AS14: dm4 | AU14: =(4*AQ14/AQ28)/((4*AQ14/AQ28)+(4*AV20/CF19)+(4*BA14/BA28)) -> 0.3789193139 | AW14: =(4*BA14/BA28)/((4*AQ14/AQ28)+(4*AV20/CF19)+(4*BA14/BA28)) -> 0.3125107743 | AZ14: I = | BA14: =(BA5*AW7^3/12+AW7*BA5*(((AW7*BA5*AW7/2+BA11*(BD8-AW7)*((BD8-AW7)/2+AW7))/(BA5*AW7+(BD8-AW7)*BA11))-AW7/2)^2+BA11*(BD8-AW7)^3/12+BA11*(BD8-AW7)*(BD8-((AW7*BA5*AW7/2+BA11*(BD8-AW7)*((BD8-AW7)/2+AW7))/(BA5*AW7+(BD8-AW7)*BA11))-(BD8-AW7)/2)^2)*10000 -> 87.71323529 | BC14: dm4 | BE14: =(4*BA14/BA28)/((4*BA14/BA28)+(4*BF20/CF19)+(4*BK14/BK28)) -> 0.3658255273 | BG14: =(4*BK14/BK28)/((4*BA14/BA28)+(4*BF20/CF19)+(4*BK14/BK28)) -> 0.2729621242 | BJ14: I = | BK14: =(BK5*BG7^3/12+BG7*BK5*(((BG7*BK5*BG7/2+BK11*(BN8-BG7)*((BN8-BG7)/2+BG7))/(BK5*BG7+(BN8-BG7)*BK11))-BG7/2)^2+BK11*(BN8-BG7)^3/12+BK11*(BN8-BG7)*(BN8-((BG7*BK5*BG7/2+BK11*(BN8-BG7)*((BN8-BG7)/2+BG7))/(BK5*BG7+(BN8-BG7)*BK11))-(BN8-BG7)/2)^2)*10000 -> 87.71323529 | BM14: dm4 | BO14: =(4*BK14/BK28)/((4*BK14/BK28)+(4*BP20/CF19)+(4*BU14/BU28)) -> 0.2759910615 | BQ14: =(4*BU14/BU28)/((4*BK14/BK28)+(4*BP20/CF19)+(4*BU14/BU28)) -> 0.35878838 | BT14: I = | BU14: =(BU5*BQ7^3/12+BQ7*BU5*(((BQ7*BU5*BQ7/2+BU11*(BX8-BQ7)*((BX8-BQ7)/2+BQ7))/(BU5*BQ7+(BX8-BQ7)*BU11))-BQ7/2)^2+BU11*(BX8-BQ7)^3/12+BU11*(BX8-BQ7)*(BX8-((BQ7*BU5*BQ7/2+BU11*(BX8-BQ7)*((BX8-BQ7)/2+BQ7))/(BU5*BQ7+(BX8-BQ7)*BU11))-(BX8-BQ7)/2)^2)*10000 -> 87.71323529 | BW14: dm4 | BY14: =(4*BU14/BU28)/((4*BU14/BU28)+(4*BZ20/CF19)) -> 0.4955579426 | CA14: 0
F15: =-E13*F28^2/2 -> -11.25 | H15: =(4*H20/CF19)/((4*M14/M28)+(4*H20/CF19)) -> 0.5044420574 | J15: =M13*M28^2/12 -> 20.83333333 | P15: =-M13*M28^2/12 -> -20.83333333 | R15: =(4*R20/CF19)/((4*M14/M28)+(4*R20/CF19)+(4*W14/W28)) -> 0.3652205585 | T15: =W13*W28^2/12 -> 35.20833333 | Z15: =-W13*W28^2/12 -> -35.20833333 | AB15: =(4*AB20/CF19)/((4*W14/W28)+(4*AB20/CF19)+(4*AG14/AG28)) -> 0.3612123484 | AD15: =AG13*AG28^2/12 -> 19.60208333 | AJ15: =-AG13*AG28^2/12 -> -19.60208333 | AL15: =(4*AL20/CF19)/((4*AG14/AG28)+(4*AL20/CF19)+(4*AQ14/AQ28)) -> 0.3085699118 | AN15: =AQ13*AQ28^2/12 -> 13.33333333 | AT15: =-AQ13*AQ28^2/12 -> -13.33333333 | AV15: =(4*AV20/CF19)/((4*AQ14/AQ28)+(4*AV20/CF19)+(4*BA14/BA28)) -> 0.3085699118 | AX15: =BA13*BA28^2/12 -> 19.60208333 | BD15: =-BA13*BA28^2/12 -> -19.60208333 | BF15: =(4*BF20/CF19)/((4*BA14/BA28)+(4*BF20/CF19)+(4*BK14/BK28)) -> 0.3612123484 | BH15: =BK13*BK28^2/12 -> 35.20833333 | BN15: =-BK13*BK28^2/12 -> -35.20833333 | BP15: =(4*BP20/CF19)/((4*BK14/BK28)+(4*BP20/CF19)+(4*BU14/BU28)) -> 0.3652205585 | BR15: =BU13*BU28^2/12 -> 20.83333333 | BX15: =-BU13*BU28^2/12 -> -20.83333333 | BZ15: =(4*BZ20/CF19)/((4*BU14/BU28)+(4*BZ20/CF19)) -> 0.5044420574 | CB15: =CC13*CB28^2/2 -> 11.25
J16: =-(J15+F15)*I14 -> -4.74909695 | P16: =+J16/2 -> -2.374548475 | T16: =+Z16/2 -> 2.129957576 | Z16: =-(Z15+AD15)*AA14 -> 4.259915152 | AD16: =-(Z15+AD15)*AC14 -> 5.709164636 | AJ16: =+AD16/2 -> 2.854582318 | AN16: =+AT16/2 -> -1.187675224 | AT16: =-(AT15+AX15)*AU14 -> -2.375350449 | AX16: =-(AT15+AX15)*AW14 -> -1.959051917 | BD16: =+AX16/2 -> -0.9795259583 | BH16: =+BN16/2 -> 1.983685755 | BN16: =-(BN15+BR15)*BO14 -> 3.967371509 | BR16: =-(BN15+BR15)*BQ14 -> 5.157582962 | BX16: =+BR16/2 -> 2.578791481
J17: =+P17/2 -> -2.534913295 | P17: =-(P15+P16+T15+T16)*Q14 -> -5.06982659 | T17: =-(P15+P16+T15+T16)*S14 -> -3.899866607 | Z17: =+T17/2 -> -1.949933304 | AD17: =+AJ17/2 -> 0.719062745 | AJ17: =-(AJ15+AJ16+AN15+AN16)*AK14 -> 1.43812549 | AN17: =-(AJ15+AJ16+AN15+AN16)*AM14 -> 1.743727157 | AT17: =+AN17/2 -> 0.8718635783 | AX17: =+BD17/2 -> -3.038255962 | BD17: =-(BD15+BD16+BH15+BH16)*BE14 -> -6.076511923 | BH17: =-(BD15+BD16+BH15+BH16)*BG14 -> -4.534012743 | BN17: =+BH17/2 -> -2.267006371 | BR17: =+BX17/2 -> 1.735578175 | BX17: =-(BX15+BX16+CB15)*BY14 -> 3.471156349
H18: dm4 | J18: =-J17*I14 -> 1.256196417 | P18: =+J18/2 -> 0.6280982085 | R18: dm4 | T18: =+Z18/2 -> 0.1679905212 | Z18: =-(Z17+AD17)*AA14 -> 0.3359810424 | AB18: dm4 | AD18: =-(Z17+AD17)*AC14 -> 0.4502838712 | AJ18: =+AD18/2 -> 0.2251419356 | AL18: dm4 | AN18: =+AT18/2 -> 0.4104439577 | AT18: =-(AT17+AX17)*AU14 -> 0.8208879154 | AV18: dm4 | AX18: =-(AT17+AX17)*AW14 -> 0.6770209612 | BD18: =+AX18/2 -> 0.3385104806 | BF18: dm4 | BH18: =+BN18/2 -> 0.07333471607 | BN18: =-(BN17+BR17)*BO14 -> 0.1466694321 | BP18: dm4 | BR18: =-(BN17+BR17)*BQ14 -> 0.1906702618 | BX18: =+BR18/2 -> 0.09533513089 | BZ18: dm4 | CF18: m
J19: =+P19/2 -> -0.1428136928 | P19: =-(P18+T18)*Q14 -> -0.2856273856 | T19: =-(P18+T18)*S14 -> -0.2197133736 | Z19: =+T19/2 -> -0.1098566868 | AD19: =+AJ19/2 -> -0.09931371984 | AJ19: =-(AJ18+AN18)*AK14 -> -0.1986274397 | AN19: =-(AJ18+AN18)*AM14 -> -0.2408357706 | AT19: =+AN19/2 -> -0.1204178853 | AX19: =+BD19/2 -> -0.07533174313 | BD19: =-(BD18+BH18)*BE14 -> -0.1506634863 | BH19: =-(BD18+BH18)*BG14 -> -0.1124181397 | BN19: =+BH19/2 -> -0.05620906987 | BR19: =+BX19/2 -> -0.02362204066 | BX19: =-BX18*BY14 -> -0.04724408132 | CF19: 3.5
H20: =J31*H34^3/12*10000 -> 62.5 | J20: =-J19*I14 -> 0.07077245979 | P20: =+J20/2 -> 0.03538622989 | R20: =T31*R34^3/12*10000 -> 62.5 | T20: =+Z20/2 -> 0.02854779926 | Z20: =-(Z19+AD19)*AA14 -> 0.05709559852 | AB20: =AD31*AB34^3/12*10000 -> 62.5 | AD20: =-(Z19+AD19)*AC14 -> 0.07651987431 | AJ20: =+AD20/2 -> 0.03825993715 | AL20: =AN31*AL34^3/12*10000 -> 62.5 | AN20: =+AT20/2 -> 0.03708665745 | AT20: =-(AT19+AX19)*AU14 -> 0.0741733149 | AV20: =AX31*AV34^3/12*10000 -> 62.5 | AX20: =-(AT19+AX19)*AW14 -> 0.06117386796 | BD20: =+AX20/2 -> 0.03058693398 | BF20: =BH31*BF34^3/12*10000 -> 62.5 | BH20: =+BN20/2 -> 0.01101633647 | BN20: =-(BN19+BR19)*BO14 -> 0.02203267294 | BP20: =BR31*BP34^3/12*10000 -> 62.5 | BR20: =-(BN19+BR19)*BQ14 -> 0.02864247482 | BX20: =+BR20/2 -> 0.01432123741 | BZ20: =CB31*BZ34^3/12*10000 -> 62.5
J21: =+P21/2 -> -0.01146939337 | P21: =-(P20+T20)*Q14 -> -0.02293878675 | T21: =-(P20+T20)*S14 -> -0.01764522057 | Z21: =+T21/2 -> -0.008822610287 | AD21: =+AJ21/2 -> -0.01177331131 | AJ21: =-(AJ20+AN20)*AK14 -> -0.02354662262 | AN21: =-(AJ20+AN20)*AM14 -> -0.02855027993 | AT21: =+AN21/2 -> -0.01427513997 | AX21: =+BD21/2 -> -0.007609769175 | BD21: =-(BD20+BH20)*BE14 -> -0.01521953835 | BH21: =-(BD20+BH20)*BG14 -> -0.01135611708 | BN21: =+BH21/2 -> -0.005678058539 | BR21: =+BX21/2 -> -0.003548501473 | BX21: =-BX20*BY14 -> -0.007097002946
J22: =-J21*I14 -> 0.005683748983 | P22: =+J22/2 -> 0.002841874491 | T22: =+Z22/2 -> 0.002810953255 | Z22: =-(Z21+AD21)*AA14 -> 0.00562190651 | AD22: =-(Z21+AD21)*AC14 -> 0.00753451388 | AJ22: =+AD22/2 -> 0.00376725694 | AN22: =+AT22/2 -> 0.004146307378 | AT22: =-(AT21+AX21)*AU14 -> 0.008292614756 | AX22: =-(AT21+AX21)*AW14 -> 0.006839269902 | BD22: =+AX22/2 -> 0.003419634951 | BH22: =+BN22/2 -> 0.001273224046 | BN22: =-(BN21+BR21)*BO14 -> 0.002546448092 | BR22: =-(BN21+BR21)*BQ14 -> 0.003310382519 | BX22: =+BR22/2 -> 0.00165519126
H23: I = | P23: =-(P22+T22)*Q14 -> -0.002028168909 | R23: I = | T23: =-(P22+T22)*S14 -> -0.00156012993 | AB23: I = | AJ23: =-(AJ22+AN22)*AK14 -> -0.002473074113 | AL23: I = | AN23: =-(AJ22+AN22)*AM14 -> -0.002998602362 | AV23: I = | BD23: =-(BD22+BH22)*BE14 -> -0.001716767617 | BF23: I = | BH23: =-(BD22+BH22)*BG14 -> -0.001280972761 | BP23: I = | BX23: =-BX22*BY14 -> -0.0008202431752 | BZ23: I =
J24: =SUM(J15:K23) -> 14.72769263 | P24: =SUM(P15:Q23) -> -27.92197643 | T24: =SUM(T15:U23) -> 33.39885485 | Z24: =SUM(Z15:AA23) -> -32.61833224 | AD24: =SUM(AD15:AE23) -> 26.45356194 | AJ24: =SUM(AJ15:AK23) -> -15.26685353 | AN24: =SUM(AN15:AO23) -> 14.06867754 | AT24: =SUM(AT15:AU23) -> -14.06815938 | AX24: =SUM(AX15:AY23) -> 15.26686804 | BD24: =SUM(BD15:BE23) -> -26.45320396 | BH24: =SUM(BH15:BI23) -> 32.61857539 | BN24: =SUM(BN15:BO23) -> -33.39860677 | BR24: =SUM(BR15:BS23) -> 27.92194705 | BX24: =SUM(BX15:BY23) -> -14.72723527
F28: 1.5 | H28: m | M28: 5 | O28: m | W28: 6.5 | Y28: m | AG28: 4.85 | AI28: m | AQ28: 4 | AS28: m | BA28: 4.85 | BC28: m | BK28: 6.5 | BM28: m | BU28: 5 | BW28: m | CB28: 1.5 | CD28: m
J30: m | T30: m | AD30: m | AN30: m | AX30: m | BH30: m | BR30: m | CB30: m
J31: 0.6 | T31: 0.6 | AD31: 0.6 | AN31: 0.6 | AX31: 0.6 | BH31: 0.6 | BR31: 0.6 | CB31: 0.6
H34: 0.5 | J34: m | R34: 0.5 | T34: m | AB34: 0.5 | AD34: m | AL34: 0.5 | AN34: m | AV34: 0.5 | AX34: m | BF34: 0.5 | BH34: m | BP34: 0.5 | BR34: m | BZ34: 0.5 | CB34: m
H36: =-J24 -> -14.72769263 | Q36: =+P24 -> -27.92197643 | S36: =-T24 -> -33.39885485 | AA36: =+Z24 -> -32.61833224 | AC36: =-AD24 -> -26.45356194 | AK36: =+AJ24 -> -15.26685353 | AM36: =-AN24 -> -14.06867754 | AU36: =+AT24 -> -14.06815938 | AW36: =-AX24 -> -15.26686804 | BE36: =+BD24 -> -26.45320396 | BG36: =-BH24 -> -32.61857539 | BO36: =+BN24 -> -33.39860677 | BQ36: =-BR24 -> -27.92194705 | BZ36: =+BX24 -> -14.72723527
K37: moment diyagramı (KNm)
G38: =IF(F15=0,"",+F15) -> -11.25 | CA38: =IF(CB15=0,"",-CB15) -> -11.25
K40: =IF(E7>0,E7,"") ->  | O40: =IF(Q7<0,Q7,"") -> -5.476878425 | U40: =IF(Q7>0,Q7,"") ->  | Y40: =IF(AA7<0,AA7,"") ->  | AE40: =IF(AA7>0,AA7,"") -> 6.164770292 | AI40: =IF(AK7<0,AK7,"") ->  | AO40: =IF(AK7>0,AK7,"") -> 1.198175997 | AS40: =IF(AU7<0,AU7,"") -> -1.198708658 | AY40: =IF(AU7>0,AU7,"") ->  | BC40: =IF(BE7<0,BE7,"") -> -6.165371435 | BI40: =IF(BE7>0,BE7,"") ->  | BM40: =IF(BO7<0,BO7,"") ->  | BS40: =IF(BO7>0,BO7,"") -> 5.476659724 | BW40: =IF(CB7<0,CB7,"") -> 
E41: =IF(E7<0,E7,"") -> -3.477692628 | CC41: =IF(CB7>0,CB7,"") -> 3.477235271
M44: =(((J24-(-P24))/M28+M13*M28*0.5)^2/(2*M13))-J24 -> 10.27334372 | W44: =(((T24-(-Z24))/W28+W13*W28*0.5)^2/(2*W13))-T24 -> 19.80462742 | AG44: =(((AD24-(-AJ24))/AG28+AG13*AG28*0.5)^2/(2*AG13))-AD24 -> 8.808923098 | AQ44: =(((AN24-(-AT24))/AQ28+AQ13*AQ28*0.5)^2/(2*AQ13))-AN24 -> 5.931581541 | BA44: =(((AX24-(-BD24))/BA28+BA13*BA28*0.5)^2/(2*BA13))-AX24 -> 8.809077121 | BK44: =(((BH24-(-BN24))/BK28+BK13*BK28*0.5)^2/(2*BK13))-BH24 -> 19.80462898 | BU44: =(((BR24-(-BX24))/BU28+BU13*BU28*0.5)^2/(2*BU13))-BR24 -> 10.27360968
E52: =IF(E7>0,-E7/2,"") ->  | K52: =IF(E7<0,-E7/2,"") -> 1.738846314 | O52: =IF(Q7>0,-Q7/2,"") ->  | U52: =IF(Q7<0,-Q7/2,"") -> 2.738439213 | Y52: =IF(AA7>0,-AA7/2,"") -> -3.082385146 | AE52: =IF(AA7<0,-AA7/2,"") ->  | AI52: =IF(AK7>0,-AK7/2,"") -> -0.5990879984 | AO52: =IF(AK7<0,-AK7/2,"") ->  | AS52: =IF(AU7>0,-AU7/2,"") ->  | AY52: =IF(AU7<0,-AU7/2,"") -> 0.5993543289 | BC52: =IF(BE7>0,-BE7/2,"") ->  | BI52: =IF(BE7<0,-BE7/2,"") -> 3.082685717 | BM52: =IF(BO7>0,-BO7/2,"") -> -2.738329862 | BS52: =IF(BO7<0,-BO7/2,"") ->  | BW52: =IF(CB7>0,-CB7/2,"") -> -1.738617636 | CC52: =IF(CB7<0,-CB7/2,"") -> 
K54: kesme kuvveti diyagramı (KN)
G55: =M13*M28+Q61 -> 22.36114324 | Q55: =W13*W28+AA61 -> 32.6200804 | AA55: =AG13*AG28+AK61 -> 26.55653782 | AK55: =AQ13*AQ28+AU61 -> 20.00012954 | AU55: =BA13*BA28+BE61 -> 21.94353899 | BE55: =BK13*BK28+BO61 -> 32.37999517 | BO55: =BU13*BU28+BY61 -> 27.63894236 | BY55: =IF(CB15=0,"",CC13*CB28) -> 15
E58: =IF(E69<0,E69,"") -> -1.490439698 | K58: =IF(K69>0,K69,"") ->  | O58: =IF(O69<0,O69,"") -> -2.347233611 | U58: =IF(U69>0,U69,"") ->  | Y58: =IF(Y69<0,Y69,"") ->  | AE58: =IF(AE69>0,AE69,"") -> 2.642044411 | AI58: =IF(AI69<0,AI69,"") ->  | AO58: =IF(AO69>0,AO69,"") -> 0.5135039986 | AS58: =IF(AS69<0,AS69,"") -> -0.5137322819 | AY58: =IF(AY69>0,AY69,"") ->  | BC58: =IF(BC69<0,BC69,"") -> -2.642302044 | BI58: =IF(BI69>0,BI69,"") ->  | BM58: =IF(BM69<0,BM69,"") ->  | BS58: =IF(BS69>0,BS69,"") -> 2.347139882 | BW58: =IF(BX69<0,BX69,"") ->  | CC58: =IF(CC69>0,CC69,"") -> 1.490243688
I61: =IF(F15=0,"",-E13*F28) -> -15 | Q61: =-(0.5*M13*M28^2+(-P24)-J24)/M28 -> -27.63885676 | AA61: =-(0.5*W13*W28^2+(-Z24)-T24)/W28 -> -32.3799196 | AK61: =-(0.5*AG13*AG28^2+(-AJ24)-AD24)/AG28 -> -21.94346218 | AU61: =-(0.5*AQ13*AQ28^2+(-AT24)-AN24)/AQ28 -> -19.99987046 | BE61: =-(0.5*BA13*BA28^2+(-BD24)-AX24)/BA28 -> -26.55646101 | BO61: =-(0.5*BK13*BK28^2+(-BN24)-BH24)/BK28 -> -32.62000483 | BY61: =-(0.5*BU13*BU28^2+(-BX24)-BR24)/BU28 -> -22.36105764
J63: =((M13*M28-((0.5*M13*M28^2+(-P24)-J24)/M28))*M28)/((M13*M28-((0.5*M13*M28^2+(-P24)-J24)/M28))+((0.5*M13*M28^2+(-P24)-J24)/M28)) -> 2.236114324 | L63: m | O63: =+M28-J63 -> 2.763885676 | Q63: m | T63: =((W13*W28-((0.5*W13*W28^2+(-Z24)-T24)/W28))*W28)/((W13*W28-((0.5*W13*W28^2+(-Z24)-T24)/W28))+((0.5*W13*W28^2+(-Z24)-T24)/W28)) -> 3.26200804 | V63: m | Y63: =+W28-T63 -> 3.23799196 | AA63: m | AD63: =((AG13*AG28-((0.5*AG13*AG28^2+(-AJ24)-AD24)/AG28))*AG28)/((AG13*AG28-((0.5*AG13*AG28^2+(-AJ24)-AD24)/AG28))+((0.5*AG13*AG28^2+(-AJ24)-AD24)/AG28)) -> 2.655653782 | AF63: m | AI63: =+AG28-AD63 -> 2.194346218 | AK63: m | AN63: =((AQ13*AQ28-((0.5*AQ13*AQ28^2+(-AT24)-AN24)/AQ28))*AQ28)/((AQ13*AQ28-((0.5*AQ13*AQ28^2+(-AT24)-AN24)/AQ28))+((0.5*AQ13*AQ28^2+(-AT24)-AN24)/AQ28)) -> 2.000012954 | AP63: m | AS63: =+AQ28-AN63 -> 1.999987046 | AU63: m | AX63: =((BA13*BA28-((0.5*BA13*BA28^2+(-BD24)-AX24)/BA28))*BA28)/((BA13*BA28-((0.5*BA13*BA28^2+(-BD24)-AX24)/BA28))+((0.5*BA13*BA28^2+(-BD24)-AX24)/BA28)) -> 2.194353899 | AZ63: m | BC63: =+BA28-AX63 -> 2.655646101 | BE63: m | BH63: =((BK13*BK28-((0.5*BK13*BK28^2+(-BN24)-BH24)/BK28))*BK28)/((BK13*BK28-((0.5*BK13*BK28^2+(-BN24)-BH24)/BK28))+((0.5*BK13*BK28^2+(-BN24)-BH24)/BK28)) -> 3.237999517 | BJ63: m | BM63: =+BK28-BH63 -> 3.262000483 | BO63: m | BR63: =((BU13*BU28-((0.5*BU13*BU28^2+(-BX24)-BR24)/BU28))*BU28)/((BU13*BU28-((0.5*BU13*BU28^2+(-BX24)-BR24)/BU28))+((0.5*BU13*BU28^2+(-BX24)-BR24)/BU28)) -> 2.763894236 | BT63: m | BW63: =+BU28-BR63 -> 2.236105764 | BY63: m
E69: =IF(E7<0,(E7+E7/2)/$CF$19,"") -> -1.490439698 | K69: =IF(E7>0,(E7+E7/2)/$CF$19,"") ->  | O69: =IF(Q7<0,(Q7+Q7/2)/$CF$19,"") -> -2.347233611 | U69: =IF(Q7>0,(Q7+Q7/2)/$CF$19,"") ->  | Y69: =IF(AA7<0,(AA7+AA7/2)/$CF$19,"") ->  | AE69: =IF(AA7>0,(AA7+AA7/2)/$CF$19,"") -> 2.642044411 | AI69: =IF(AK7<0,(AK7+AK7/2)/$CF$19,"") ->  | AO69: =IF(AK7>0,(AK7+AK7/2)/$CF$19,"") -> 0.5135039986 | AS69: =IF(AU7<0,(AU7+AU7/2)/$CF$19,"") -> -0.5137322819 | AY69: =IF(AU7>0,(AU7+AU7/2)/$CF$19,"") ->  | BC69: =IF(BE7<0,(BE7+BE7/2)/$CF$19,"") -> -2.642302044 | BI69: =IF(BE7>0,(BE7+BE7/2)/$CF$19,"") ->  | BM69: =IF(BO7<0,(BO7+BO7/2)/$CF$19,"") ->  | BS69: =IF(BO7>0,(BO7+BO7/2)/$CF$19,"") -> 2.347139882 | BX69: =IF(CB7<0,(CB7+CB7/2)/$CF$19,"") ->  | CC69: =IF(CB7>0,(CB7+CB7/2)/$CF$19,"") -> 1.490243688
C71: kiriş faydalı yükseklik d (m) | I71: =P8-$N$3 -> 0.57 | S71: =Z8-$N$3 -> 0.57 | AC71: =AJ8-$N$3 -> 0.57 | AM71: =AT8-$N$3 -> 0.57 | AW71: =BD8-$N$3 -> 0.57 | BG71: =BN8-$N$3 -> 0.57 | BQ71: =BX8-$N$3 -> 0.57
C73: kiriş kolon yüzünden d mesafede kesme kuvveti (KN) | I73: =(M13*M28-((0.5*M13*M28^2-P24-J24)/M28))-M13*(H34/2+I71) -> 14.16114324 | P73: =((0.5*M13*M28^2-P24-J24)/M28)-M13*(R34/2+I71) -> 19.43885676 | S73: =(W13*W28-((0.5*W13*W28^2-Z24-T24)/W28))-W13*(R34/2+S71) -> 24.4200804 | Z73: =((0.5*W13*W28^2-Z24-T24)/W28)-W13*(AB34/2+S71) -> 24.1799196 | AC73: =(AG13*AG28-((0.5*AG13*AG28^2-AJ24-AD24)/AG28))-AG13*(AB34/2+AC71) -> 18.35653782 | AJ73: =((0.5*AG13*AG28^2-AJ24-AD24)/AG28)-AG13*(AL34/2+AC71) -> 13.74346218 | AM73: =(AQ13*AQ28-((0.5*AQ13*AQ28^2-AT24-AN24)/AQ28))-AQ13*(AL34/2+AM71) -> 11.80012954 | AT73: =((0.5*AQ13*AQ28^2-AT24-AN24)/AQ28)-AQ13*(AV34/2+AM71) -> 11.79987046 | AW73: =(BA13*BA28-((0.5*BA13*BA28^2-BD24-AX24)/BA28))-BA13*(AV34/2+AW71) -> 13.74353899 | BD73: =((0.5*BA13*BA28^2-BD24-AX24)/BA28)-BA13*(BF34/2+AW71) -> 18.35646101 | BG73: =(BK13*BK28-((0.5*BK13*BK28^2-BN24-BH24)/BK28))-BK13*(BF34/2+BG71) -> 24.17999517 | BN73: =((0.5*BK13*BK28^2-BN24-BH24)/BK28)-BK13*(BP34/2+BG71) -> 24.42000483 | BQ73: =(BU13*BU28-((0.5*BU13*BU28^2-BX24-BR24)/BU28))-BU13*(BP34/2+BQ71) -> 19.43894236 | BX73: =((0.5*BU13*BU28^2-BX24-BR24)/BU28)-BU13*(BZ34/2+BQ71) -> 14.16105764
C75: kiriş kolon yüzünden 2*h mesafede kesme kuvveti (KN) | I75: =(M13*M28-((0.5*M13*M28^2-P24-J24)/M28))-M13*(H34/2+2*P8) -> 7.86114324 | P75: =((0.5*M13*M28^2-P24-J24)/M28)-M13*(R34/2+2*P8) -> 13.13885676 | S75: =(W13*W28-((0.5*W13*W28^2-Z24-T24)/W28))-W13*(R34/2+2*Z8) -> 18.1200804 | Z75: =((0.5*W13*W28^2-Z24-T24)/W28)-W13*(AB34/2+2*Z8) -> 17.8799196 | AC75: =(AG13*AG28-((0.5*AG13*AG28^2-AJ24-AD24)/AG28))-AG13*(AB34/2+2*AJ8) -> 12.05653782 | AJ75: =((0.5*AG13*AG28^2-AJ24-AD24)/AG28)-AG13*(AL34/2+2*AJ8) -> 7.443462183 | AM75: =(AQ13*AQ28-((0.5*AQ13*AQ28^2-AT24-AN24)/AQ28))-AQ13*(AL34/2+2*AT8) -> 5.500129538 | AT75: =((0.5*AQ13*AQ28^2-AT24-AN24)/AQ28)-AQ13*(AV34/2+2*AT8) -> 5.499870462 | AW75: =(BA13*BA28-((0.5*BA13*BA28^2-BD24-AX24)/BA28))-BA13*(AV34/2+2*BD8) -> 7.443538986 | BD75: =((0.5*BA13*BA28^2-BD24-AX24)/BA28)-BA13*(BF34/2+2*BD8) -> 12.05646101 | BG75: =(BK13*BK28-((0.5*BK13*BK28^2-BN24-BH24)/BK28))-BK13*(BF34/2+2*BN8) -> 17.87999517 | BN75: =((0.5*BK13*BK28^2-BN24-BH24)/BK28)-BK13*(BP34/2+2*BN8) -> 18.12000483 | BQ75: =(BU13*BU28-((0.5*BU13*BU28^2-BX24-BR24)/BU28))-BU13*(BP34/2+2*BX8) -> 13.13894236 | BX75: =((0.5*BU13*BU28^2-BX24-BR24)/BU28)-BU13*(BZ34/2+2*BX8) -> 7.861057645
C77: kiriş kolon yüzü kesme kuvveti (KN) | I77: =(M13*M28-((0.5*M13*M28^2-P24-J24)/M28))-M13*H34/2 -> 19.86114324 | P77: =((0.5*M13*M28^2-P24-J24)/M28)-M13*R34/2 -> 25.13885676 | S77: =(W13*W28-((0.5*W13*W28^2-Z24-T24)/W28))-W13*R34/2 -> 30.1200804 | Z77: =((0.5*W13*W28^2-Z24-T24)/W28)-W13*AB34/2 -> 29.8799196 | AC77: =(AG13*AG28-((0.5*AG13*AG28^2-AJ24-AD24)/AG28))-AG13*AB34/2 -> 24.05653782 | AJ77: =((0.5*AG13*AG28^2-AJ24-AD24)/AG28)-AG13*AL34/2 -> 19.44346218 | AM77: =(AQ13*AQ28-((0.5*AQ13*AQ28^2-AT24-AN24)/AQ28))-AQ13*AL34/2 -> 17.50012954 | AT77: =((0.5*AQ13*AQ28^2-AT24-AN24)/AQ28)-AQ13*AV34/2 -> 17.49987046 | AW77: =(BA13*BA28-((0.5*BA13*BA28^2-BD24-AX24)/BA28))-BA13*AV34/2 -> 19.44353899 | BD77: =((0.5*BA13*BA28^2-BD24-AX24)/BA28)-BA13*BF34/2 -> 24.05646101 | BG77: =(BK13*BK28-((0.5*BK13*BK28^2-BN24-BH24)/BK28))-BK13*BF34/2 -> 29.87999517 | BN77: =((0.5*BK13*BK28^2-BN24-BH24)/BK28)-BK13*BP34/2 -> 30.12000483 | BQ77: =(BU13*BU28-((0.5*BU13*BU28^2-BX24-BR24)/BU28))-BU13*BP34/2 -> 25.13894236 | BX77: =((0.5*BU13*BU28^2-BX24-BR24)/BU28)-BU13*BZ34/2 -> 19.86105764
C79: kiriş kolon yüzü moment (KNm) | I79: =+J24-(M13*M28-((0.5*M13*M28^2-P24-J24)/M28))*H34/3 -> 11.00083542 | P79: =-P24-((0.5*M13*M28^2-P24-J24)/M28)*R34/3 -> 23.3155003 | S79: =+T24-(W13*W28-((0.5*W13*W28^2-Z24-T24)/W28))*R34/3 -> 27.96217478 | Z79: =-Z24-((0.5*W13*W28^2-Z24-T24)/W28)*AB34/3 -> 27.22167897 | AC79: =+AD24-(AG13*AG28-((0.5*AG13*AG28^2-AJ24-AD24)/AG28))*AB34/3 -> 22.02747231 | AJ79: =-AJ24-((0.5*AG13*AG28^2-AJ24-AD24)/AG28)*AL34/3 -> 11.60960983 | AM79: =+AN24-(AQ13*AQ28-((0.5*AQ13*AQ28^2-AT24-AN24)/AQ28))*AL34/3 -> 10.73532261 | AT79: =-AT24-((0.5*AQ13*AQ28^2-AT24-AN24)/AQ28)*AV34/3 -> 10.73484764 | AW79: =+AX24-(BA13*BA28-((0.5*BA13*BA28^2-BD24-AX24)/BA28))*AV34/3 -> 11.60961154 | BD79: =-BD24-((0.5*BA13*BA28^2-BD24-AX24)/BA28)*BF34/3 -> 22.02712712 | BG79: =+BH24-(BK13*BK28-((0.5*BK13*BK28^2-BN24-BH24)/BK28))*BF34/3 -> 27.22190953 | BN79: =-BN24-((0.5*BK13*BK28^2-BN24-BH24)/BK28)*BP34/3 -> 27.9619393 | BQ79: =+BR24-(BU13*BU28-((0.5*BU13*BU28^2-BX24-BR24)/BU28))*BP34/3 -> 23.31545665 | BX79: =-BX24-((0.5*BU13*BU28^2-BX24-BR24)/BU28)*BZ34/3 -> 11.00039233
